Workbook

Sheet Title
B1: Technical Appendix. Article link: https://wwwnc.cdc.gov/EID/article/23/12/17-1148-htm
B6: Planning aid for the control of dog-mediated human rabies deaths based on dog vaccination*
B7: Tool based on the article by Wallace et al. 2017 Front. Vet. Sci. 4:9. doi: 10.3389/fvets.2017.00009‡
B8: Government perspective
B10: =Assumptions!D4 -> 2017-09-04
B13: Authors:† Ryan M. Wallace, Eduardo A. Undurraga, Jesse D. Blanton, M. Meltzer
B16: *This spreasheet is a beta test version. It has not been officially cleared by the funding agency. The use of this version is for testing purposes only. The methodology used, findings, and conclusions produced from this software are those of the authors and do not necessarily represent the views of the Centers for Disease Control and Prevention.
B17: ‡ Available in this link
B18: † Preliminary order of authors.

Sheet Assumptions
C1: =Title!B6 -> Planning aid for the control of dog-mediated human rabies deaths based on dog vaccination*
C2: =Title!B7 -> Tool based on the article by Wallace et al. 2017 Front. Vet. Sci. 4:9. doi: 10.3389/fvets.2017.00009‡
C4: Updated: | D4: 2017-09-04
C5: Study perspective: | D5: Government
C7: Note: | D7: The default values correspond to country estimates in Wallace et al. 2017
C9: Instructions: | E9: Blue tabs indicate sheets were program data are required
E11: White cell: user can modify content
E12: Grey cell: do not modify content
C13: Main assumptions
B14: 1 | C14: 70% of the dog population has to be vaccinated annually for 5-7 years to eliminate dog rabies, as per WHO recommendations and some evidence (WHO 2013, Coleman et al. 1996, Cleaveland et la. 2003). There may be some variation by setting that we are not considering (Kitala et al. 2001)
B15: =B14+1 -> 2 | C15: Dog vaccination coverage estimates by Hampson et al. 2015, are reasonably accurate.
B16: 3 | C16: Regional human to dog ratios estimated by Knobel et al. 2005 are representative of countries in each region.
B17: 4 | C17: Countries where rabies has been eliminated from specific regions within the country (e.g., Brazil) still require national vaccination coverage.
B18: 5 | C18: The time frames presented in the GDREP accurately reflect a country’s progression towards elimination.
B19: 6 | C19: All countries commit to dog rabies elimination at year one of GDREP and move through the phases as predicted
B20: 7 | C20: After 7 years of vaccination of 70% of dog population, we consider the country rabies free and do not longer estimate dog vaccination maintenance costs.
B21: 8 | C21: Vaccination capacity: all public health veterinary work force would be willing / able to do dog vaccinations, and veterinary workers can move within countries at ease. We assume the workforce reported by OIE is reasonably accurate.
C23: References in the spreadsheet
B24: 1 | C24: Cleaveland S, Kaare M, Tiringa P, Mlengeya T, Barrat J. A dog rabies vaccination campaign in rural Africa: impact on the incidence of dog rabies and human dog-bite injuries. Vaccine (2003) 21(17):1965-73.
B25: =B24+1 -> 2 | C25: Coleman PG, Dye C. Immunization coverage required to prevent outbreaks of dog rabies. Vaccine (1996) 14(3):185-6.
B26: =B25+1 -> 3 | C26: Hampson K, Coudeville L, Lembo T, Sambo M, Kieffer A, Attlan M, et al. Estimating the Global Burden of Endemic Canine Rabies. PLoS Negl Trop Dis (2015) 9(4):e0003709.
B27: 4 | C27: Hatch B, Anderson A, Sambo M, Maziku M, Mchau G, Mbunda E, et al. Towards Canine Rabies Elimination in South‐Eastern Tanzania: Assessment of Health Economic Data. Transbound Emerg Dis (2016).
B28: 5 | C28: Kaare M, Lembo T, Hampson K, Ernest E, Estes A, Mentzel C, et al. Rabies control in rural Africa: evaluating strategies for effective domestic dog vaccination. Vaccine (2009) 27(1):152-60.
B29: 6 | C29: Kayali U, Mindekem R, Hutton G, Ndoutamia A, Zinsstag J. Cost‐description of a pilot parenteral vaccination campaign against rabies in dogs in N'Djaména, Chad. Trop Med Int Health (2006) 11(7):1058-65.
B30: 7 | C30: Kitala P, McDermott J, Kyule M, Gathuma J, Perry B, Wandeler A. Dog ecology and demography information to support the planning of rabies control in Machakos District, Kenya. Acta Trop (2001) 78(3):217-30.
B31: 8 | C31: Knobel DL, Cleaveland S, Coleman PG, Fèvre EM, Meltzer MI, Miranda MEG, et al. Re-evaluating the burden of rabies in Africa and Asia. Bull WHO (2005) 83(5):360-8.
B32: 9 | C32: Lapiz SMD, Miranda MEG, Garcia RG, Daguro LI, Paman MD, Madrinan FP, et al. Implementation of an intersectoral program to eliminate human and canine rabies: the Bohol Rabies Prevention and Elimination Project. PLoS Negl Trop Dis (2012) 6(12):e1891.
B33: 10 | C33: Tenzin, Wangdi K, Ward MP. Human and animal rabies prevention and control cost in Bhutan, 2001–2008: The cost–benefit of dog rabies elimination. Vaccine (2012) 31(1):260-70.
B34: 11 | C34: US Department of Commerce BoEA. National income and product account tables. Table 1.1.9 Implicit price deflators for Gross Domestic Product (2015) [cited 2015 22 December]. Available from: http://www.bea.gov/iTable/iTable.cfm?reqid=9&step=3&isuri=1&903=13#reqid=9&step=3&isuri=1&904=2000&903=13&906=a&905=2015&910=x&911=0
B35: 12 | C35: Vigilato MAN, Clavijo A, Knobl T, Silva HMT, Cosivi O, Schneider MC, et al. Progress towards eliminating canine rabies: policies and perspectives from Latin America and the Caribbean. Philos Trans R Soc, Ser B: Biol Sci (2013) 368(1623):20120143.
B36: 13 | C36: Wallace RM, Undurraga EA, Blanton JD, Cleaton J and Franka R (2017). Elimination of Dog-Mediated Human Rabies Deaths by 2030: Needs Assessment and Alternatives for Progress Based on Dog Vaccination. Front. Vet. Sci. 4:9. doi: 10.3389/fvets.2017.00009
B37: 14 | C37: World Bank. World Bank Open Data (2016) [cited 2016 October 10]. Available from: http://data.worldbank.org/indicator/SP.URB.TOTL.IN.ZS.
B38: 15 | C38: World Health Organization. WHO Expert Consultation on Rabies. Second Report Geneva(2013) [cited 2016 30 March]. Available from: http://apps.who.int/iris/bitstream/10665/85346/1/9789240690943_eng.pdf.

Sheet Epi-demographic
B2: Demographic, epidemiological, and cost input variables | G2: Summary of results from the analysis: dog vaccination campaign
B3: Model Variable | C3: Input values | D3: Default values
B5: Select country | C5: Kenya | D5: =VLOOKUP(C5,Default_data!$A$2:$M$194, 2, FALSE) -> KEN | G5: Resources needed (annual)
G6: Total dog population | H6: =C16 -> 5169798.055
B7: Discount rate (health outcomes & costs) | C7: 0 | G7: Dogs vaccinated | H7: =H6*C20 -> 258489.9027
G8: Dogs unvaccinated | H8: =H6-H7 -> 4911308.152
B9: Demographics | G9: Number of additional vaccinated dogs required | H9: =H6*C21-H7 -> 3360368.736
B10: Human population | C10: 46050302 | D10: =VLOOKUP(D5,Default_data!$B$2:$M$194, 2, FALSE) -> 46050302 | G10: Average cost per dog vaccinated | H10: =Cost_dog_vax_aid!J5 -> 1.808
B11: Percent urban | C11: 0.26 | D11: =VLOOKUP(D5,Default_data!$B$2:$M$194, 3, FALSE) -> 0.25622 | G11: Estimated years until elimination | H11: =IF(C20<(0.25*Flowchart!H20),Flowchart!H21+6,IF(C20<0.5*Flowchart!H20,Flowchart!H21+3,IF(C20<0.75*Flowchart!H20,Flowchart!H21+2,IF(C20<Flowchart!H20,Flowchart!H21+1,7)))) -> 13
B12: Urban population | C12: =C10*C11 -> 11973078.52 | D12: =D10*D11 -> 11799008.38 | G12: Vaccinators needed during peak campaign years | H12: =C32 -> 1723.266018
B13: Rural population | C13: =C10-C12 -> 34077223.48 | D13: =D10-D12 -> 34251293.62 | G13: Total costs to eliminate
B14: Number of humans per dog, urban areas | C14: 21.2 | D14: =VLOOKUP(D5,Default_data!$B$2:$M$194, 4, FALSE) -> 21.2 | G14: Net present value (NPV) Phase I | H14: =IF(C20<Flowchart!F16, SUM(Calculations!C7:E7)*'Epi-demographic'!H7+'Epi-demographic'!H9*SUM(Calculations!C7:E7)*Calculations!C23, 0) -> 3224713.235
B15: Number of humans per dog, rural areas | C15: 7.4 | D15: =VLOOKUP(D5,Default_data!$B$2:$M$194, 5, FALSE) -> 7.4 | G15: Net present value Phase II | H15: =IF(C21=0,0,IF(C20<Flowchart!F16,Flowchart!H16*Calculations!F7*'Epi-demographic'!H6+Calculations!C23*Calculations!F7*('Epi-demographic'!C21-Flowchart!H16)*'Epi-demographic'!H6+Calculations!G7*Flowchart!H17*'Epi-demographic'!H6+Calculations!C23*('Epi-demographic'!C21-Flowchart!H17)*Calculations!G7*'Epi-demographic'!H6+Calculations!H7*Flowchart!H18*'Epi-demographic'!H6+Calculations!C23*Calculations!H7*('Epi-demographic'!C21-Flowchart!H18)*'Epi-demographic'!H6, IF('Epi-demographic'!C20>='Epi-demographic'!C21,0,IF('Epi-demographic'!C20<'Epi-demographic'!C21,IF('Epi-demographic'!C20>=Flowchart!F18, 'Epi-demographic'!C20*Calculations!C7*'Epi-demographic'!H6+Calculations!C23*('Epi-demographic'!C21-'Epi-demographic'!C20)*Calculations!C7*'Epi-demographic'!H6, IF('Epi-demographic'!C20>=Flowchart!F17,'Epi-demographic'!C20*Calculations!C7*'Epi-demographic'!H6+Calculations!C23*('Epi-demographic'!C21-'Epi-demographic'!C20)*'Epi-demographic'!H6*Calculations!C7+Calculations!D7*Flowchart!H18*'Epi-demographic'!H6+Calculations!C23*Calculations!D7*('Epi-demographic'!C21-Flowchart!H18)*'Epi-demographic'!H6, IF('Epi-demographic'!C20>=Flowchart!F16, Calculations!C7*'Epi-demographic'!C20*'Epi-demographic'!H6+Calculations!C23*Calculations!C7*('Epi-demographic'!C21-'Epi-demographic'!C20)*'Epi-demographic'!H6+Calculations!D7*Flowchart!H17*'Epi-demographic'!H6+Calculations!C23*Calculations!D7*('Epi-demographic'!C21-Flowchart!H17)*'Epi-demographic'!H6+Calculations!E7*Flowchart!H18*'Epi-demographic'!H6+Calculations!C23*Calculations!E7*('Epi-demographic'!C21-Flowchart!H18)*'Epi-demographic'!H6, "error"))))))) -> 13004006.63
B16: Total dog population | C16: =C12/C14+C13/C15 -> 5169798.055 | D16: =$D$12/$D$14+$D$13/$D$15 -> 5185110.191 | G16: Net present value Phase III | H16: =IF('Epi-demographic'!C20>='Epi-demographic'!C21,SUM(Calculations!C7:I7)*'Epi-demographic'!H6*'Epi-demographic'!C21, IF(C20<Flowchart!F16,SUM(Calculations!I7:O7)*H6*C21, IF(C20>=Flowchart!F18, SUM(Calculations!D7:J7)*H6*C21, IF(C20>=Flowchart!F17, SUM(Calculations!E7:K7)*'Epi-demographic'!H6*'Epi-demographic'!C21, IF(C20>=Flowchart!F16,SUM(Calculations!F7:L7)*H6*C21, "error"))))) -> 45800274.93
G17: NPV of dog rabies elimination (average) | H17: =SUM(H14:H16) -> 62028994.79
G18: NPV of dog rabies elimination (lower-upper) | H18: =CONCATENATE("(",TEXT(Calculations!P47,"$#,##")," - ",TEXT(Calculations!P60,"$#,##"),")") -> ($50,615,843 - $72,755,985)
B19: Dog vaccination | G19: Additional costs to government | H19: =Calculations!P19 -> 55953448.12
B20: Current dog rabies vaccination coverage (%) | C20: 0.05 | D20: =VLOOKUP(D5,Default_data!$B$2:$M$194, 6, FALSE) -> 0.005 | G20: Range (lower-upper) | H20: =CONCATENATE("(",TEXT(Calculations!P48,"$#,##")," - ",TEXT(Calculations!P61,"$#,##"),")") -> ($45,658,179 - $65,629,763)
B21: Goal: annual coverage of dog population (%) | C21: 0.7 | D21: =Flowchart!H20 -> 0.7
B22: Total dogs currently vaccinated per year | C22: =C20*C16 -> 258489.9027 | D22: =D20*D16 -> 25925.55096
B23: Dogs to reach vaccination goal | C23: =C21*C16-C22 -> 3360368.736 | D23: =D21*D16-D22 -> 3603651.583
B25: Vaccination campaign logistics
B26: Vaccinators available | C26: 4300 | D26: =VLOOKUP(D5,Default_data!$B$2:$M$194, 10, FALSE) -> 1207
B27: Dogs vaccinated per vaccinator per day (rate) | C27: 100 | D27: 100
B28: Campaign vaccination days | C28: 21 | D28: 25
B29: Estimated dogs vaccinated during campaign | C29: =C28*C27*C26 -> 9030000 | D29: =D28*D27*D26 -> 3017500
B30: Additional vaccinators needed to reach goal | C30: =IF((C21*C16-C29)/(C27*C28)<0,"Enough", (C21*C16-C29)/(C27*C28)) -> Enough | D30: =IF((D21*D16-D29)/(D27*D28)<0,"Enough", (D21*D16-D29)/(D27*D28)) -> 244.8308535
B31: Vaccination rate needed to reach goal | C31: =(C21*C16)/C26/C28 -> 40.07595391 | D31: =(D21*D16)/D26/D28 -> 120.2842464
B32: Vaccinators to reach vaccination goal at peak‡ | C32: =(C21*C16)/C27/C28 -> 1723.266018 | D32: =(D21*D16)/D27/D28 -> 1451.830854
B34: Vaccination campaign costs per vaccinated dog*
B35: Average cost per dog vaccinated
B37: Notes:
B38: * Use cost_dog_vax help worksheet to estimate vaccination campaign costs (best cost estimate, and lower and upper bounds)
B39: † Net dog vaccination capacity shows the maximum vaccination capacity of the country (total dogs per year) minus the number of dogs that the country needs to vaccinate. Thus is the number is positive, the country has enough capacity; if negative, the country needs more vaccinators, increased vaccination efficiency, or more campaign days. The estimated annual costs are based on the cost per dog vaccinated; excess vaccinator capacity is not included in the aggregate costs.
B40: ‡ Minimum number of dog vaccinators that would be needed annually when the vaccination program is operating at its goal of dog population coverage (e.g., 70%) at the dog vaccination rate estimated (dogs per vaccinator per day). See "calculations worksheet" for yearly estimates.
B42: References used in the worksheet
B43: Hampson K, Coudeville L, Lembo T, Sambo M, Kieffer A, Attlan M, et al. Estimating the Global Burden of Endemic Canine Rabies. PLoS Negl Trop Dis (2015) 9(4):e0003709.
B44: Knobel DL, Cleaveland S, Coleman PG, Fèvre EM, Meltzer MI, Miranda MEG, et al. Re-evaluating the burden of rabies in Africa and Asia. Bull WHO (2005) 83(5):360-8.
B45: Vigilato MAN, Clavijo A, Knobl T, Silva HMT, Cosivi O, Schneider MC, et al. Progress towards eliminating canine rabies: policies and perspectives from Latin America and the Caribbean. Philos Trans R Soc, Ser B: Biol Sci (2013) 368(1623):20120143.
B46: World Bank. World Bank Open Data (2016) [cited 2016 October 10]. Available from: http://data.worldbank.org/indicator/SP.URB.TOTL.IN.ZS.
B47: World Health Organization. WHO Expert Consultation on Rabies. Second Report Geneva(2013) [cited 2016 30 March]. Available from: http://apps.who.int/iris/bitstream/10665/85346/1/9789240690943_eng.pdf.

Sheet Cost_dog_vax_aid
B2: Costs per dog vaccination campaign | J2: Total
B3: Summary of dog vaccination costs (per dog vaccinated) | I3: Lower bound | J3: Average | K3: Upper bound
B5: Cost per dog vaccinated (user input; these values determine all cost estimates)* | I5: 1.475333333 | J5: 1.808 | K5: 2.120666667
B8: Instructions: | F8: Examples of cost estimates of cost per dog vaccinated from previous studies
B9: Enter your best estimate, including lower and upper bounds, | F9: Location | J9: Author | K9: Estimate (US$)
B10: of the average cost to vaccinate a dog in the white cells in this panel. | F10: N'Djamena, Chad | J10: Kayali et al 2006 | K10: 2.38
B11: These estimates will inform all the cost calculations in GDREP. | F11: Rural Tanzania (pastoralist and agro-pastolarist villages) | J11: Kaare et al 2009 | K11: 2.39
B12: If you need help to estimate these values, use the tables | F12: Petchabun, Thailand | J12: Knobel et al 2005 | K12: 1.6
B13: below with data from a dog vaccination campaign. | F13: Dar es Salaam, Tanzania | J13: Hatch et al 2016 | K13: 8.67
B14: There are a few estimates of the costs to vaccinate a dog | F14: Bohol, Visayas Islands, Philippines | J14: Lapiz et al 2012 | K14: 1.76
B15: in the table at the right of the panel. | F15: Bhutan | J15: Tenzin et al 2012 | K15: 1.93
F16: All costs shown in this table are in 2015 US dollars using US GDP implicit price deflators.
B18: Costs per dog vaccination campaign - user aid tables | J18: Total
B19: Summary of dog vaccination costs based on calculation tables (per dog vaccinated) | I19: Lower bound | J19: Average | K19: Upper bound
B21: Total dogs vaccinated in pilot campaign (user input) | J21: 45000
B23: Average cost per dog vaccinated (calculated using worksheet) | I23: =I100 -> 1.475333333 | J23: =J100 -> 1.808 | K23: =K100 -> 2.120666667
B25: Human resources | I25: =I34/$J$21 -> 0.3044444444 | J25: =J34/$J$21 -> 0.3138888889 | K25: =K34/$J$21 -> 0.3233333333
B26: Transport costs | I26: =I47/$J$21 -> 0.1 | J26: =J47/$J$21 -> 0.1433333333 | K26: =K47/$J$21 -> 0.1866666667
B27: Awareness campaign | I27: =I58/$J$21 -> 0.07955555556 | J27: =J58/$J$21 -> 0.1031111111 | K27: =K58/$J$21 -> 0.1266666667
B28: Equipment at vaccination point | I28: =I66/$J$21 -> 0.01333333333 | J28: =J66/$J$21 -> 0.01666666667 | K28: =K66/$J$21 -> 0.02
B29: Dog vaccinations (consumables) | I29: =I96/$J$21 -> 0.978 | J29: =J96/$J$21 -> 1.231 | K29: =K96/$J$21 -> 1.464
B31: Economic cost of vaccination campaign* | C31: Units | D31: Work days | F31: Price/Unit | J31: Total cost
B32: Item | E32: Lower bound | F32: Average | G32: Upper bound | I32: Lower bound | J32: Average | K32: Upper bound
B34: Workers participating in campaign (per diem) | I34: =SUM(I36:I45) -> 13700 | J34: =SUM(J36:J45) -> 14125 | K34: =SUM(K36:K45) -> 14550
B36: Training supervisor | C36: 3 | D36: 10 | E36: 70 | F36: 75 | G36: 80 | I36: =E36*$D36*$C36 -> 2100 | J36: =F36*$D36*$C36 -> 2250 | K36: =G36*$D36*$C36 -> 2400
B37: Informational supervisor | C37: 0 | D37: 0 | I37: =E37*$D37*$C37 -> 0 | J37: 0 | K37: 0
B38: Vaccination supervisor | C38: 3 | D38: 10 | E38: 40 | F38: 42.5 | G38: 45 | I38: 1200 | J38: 1275 | K38: 1350
B39: Training technician | C39: 0 | D39: 0 | I39: 0 | J39: 0 | K39: 0
B40: Informational technician | C40: 0 | D40: 0 | I40: 0 | J40: 0 | K40: 0
B41: Vaccination Technician | C41: 96 | D41: 10 | E41: 10 | F41: 10 | G41: 10 | I41: 9600 | J41: 9600 | K41: 9600
B42: Driver | C42: 2 | D42: 10 | E42: 40 | F42: 50 | G42: 60 | I42: 800 | J42: 1000 | K42: 1200
B43: Other personnel 1 | C43: 0 | D43: 0 | I43: =E43*$D43*$C43 -> 0 | J43: =F43*$D43*$C43 -> 0 | K43: =G43*$D43*$C43 -> 0
B44: Other personnel 2 | C44: 0 | D44: 0 | I44: 0 | J44: 0 | K44: 0
B45: Other personnel 3 | C45: 0 | D45: 0 | I45: 0 | J45: 0 | K45: 0
B47: Transportation and logistics | I47: =SUM(I49:I56) -> 4500 | J47: =SUM(J49:J56) -> 6450 | K47: =SUM(K49:K56) -> 8400
B49: Pick up (including gasoline) | C49: 42 | D49: 10 | E49: 5 | F49: 7.5 | G49: 10 | I49: =E49*$D49*$C49 -> 2100 | J49: =F49*$D49*$C49 -> 3150 | K49: =G49*$D49*$C49 -> 4200
B50: Vehicle | C50: 0 | D50: 0 | I50: =E50*$D50*$C50 -> 0 | J50: 0 | K50: 0
B51: Gasoline | C51: 6 | D51: 10 | E51: 30 | F51: 40 | G51: 50 | I51: 1800 | J51: 2400 | K51: 3000
B52: Maintenance vehicle | C52: 6 | D52: 10 | E52: 10 | F52: 15 | G52: 20 | I52: 600 | J52: 900 | K52: 1200
B53: Public transport | C53: 0 | D53: 0 | I53: =E53*$D53*$C53 -> 0 | J53: =F53*$D53*$C53 -> 0 | K53: =G53*$D53*$C53 -> 0
B54: Other transportation costs 1 | C54: 0 | D54: 0 | I54: 0 | J54: 0 | K54: 0
B55: Other transportation costs 2 | C55: 0 | D55: 0 | I55: =E55*$D55*$C55 -> 0 | J55: =F55*$D55*$C55 -> 0 | K55: =G55*$D55*$C55 -> 0
B56: Other transportation costs 3 | C56: 0 | D56: 0 | I56: 0 | J56: 0 | K56: 0
B58: Awareness campaign | I58: =SUM(I60:I64) -> 3580 | J58: =SUM(J60:J64) -> 4640 | K58: =SUM(K60:K64) -> 5700
B60: Media (e.g. posters) | C60: 2000 | D60: N/A | E60: 0.8 | F60: 1 | G60: 1.2 | I60: =E60*$C60 -> 1600 | J60: =F60*$C60 -> 2000 | K60: =G60*$C60 -> 2400
B61: Air time (radio, car with speakers, etc.) | C61: 1 | D61: 22 | E61: 90 | F61: 120 | G61: 150 | I61: =E61*$D61*$C61 -> 1980 | J61: =F61*$D61*$C61 -> 2640 | K61: =G61*$D61*$C61 -> 3300
B62: Other communication & awareness costs 1 | C62: 0 | D62: 0 | I62: =E62*$D62*$C62 -> 0 | J62: =F62*$D62*$C62 -> 0 | K62: =G62*$D62*$C62 -> 0
B63: Other communication & awareness costs 2 | C63: 0 | D63: 0 | I63: 0 | J63: 0 | K63: 0
B64: Other communication & awareness costs 3 | C64: 0 | D64: 0 | I64: =E64*$D64*$C64 -> 0 | J64: =F64*$D64*$C64 -> 0 | K64: =G64*$D64*$C64 -> 0
B66: Equipment at vaccination point | I66: =SUM(I68:I74) -> 600 | J66: =SUM(J68:J74) -> 750 | K66: =SUM(K68:K74) -> 900
B68: Tables | C68: 0 | D68: N/A | I68: =E68*$C68 -> 0 | J68: =F68*$C68 -> 0 | K68: =G68*$C68 -> 0
B69: Coolers | C69: 0 | D69: N/A | I69: =E69*$C69 -> 0 | J69: 0 | K69: 0
B70: Dog handling (e.g., muzzles) | C70: 100 | D70: N/A | E70: 2 | F70: 2.5 | G70: 3 | I70: 200 | J70: 250 | K70: 300
B71: First-aid | C71: 100 | D71: N/A | E71: 4 | F71: 5 | G71: 6 | I71: 400 | J71: =F71*$C71 -> 500 | K71: 600
B72: Other equipment / supplies 1 | C72: 0 | D72: N/A | I72: =E72*$C72 -> 0 | J72: =F72*$C72 -> 0 | K72: =G72*$C72 -> 0
B73: Other equipment / supplies 2 | C73: 0 | D73: N/A | I73: 0 | J73: 0 | K73: 0
B74: Other equipment / supplies 3 | C74: 0 | D74: N/A | I74: 0 | J74: 0 | K74: 0
B76: Other costs associated with the campaign (per work day) | I76: =SUM(I78:I80) -> 0 | J76: =SUM(J78:J80) -> 0 | K76: =SUM(K78:K80) -> 0
B78: Other costs 1 | C78: 0 | D78: 0 | I78: =E78*$D78*$C78 -> 0 | J78: 0 | K78: 0
B79: Other costs 2 | C79: 0 | D79: 0 | I79: 0 | J79: 0 | K79: 0
B80: Other costs 3 | C80: 0 | D80: 0 | I80: 0 | J80: 0 | K80: 0
B83: Total fixed costs | I83: =I34+I47+I58+I66+I76 -> 22380 | J83: =J34+J47+J58+J66+J76 -> 25965 | K83: =K34+K47+K58+K66+K76 -> 29550
B86: Dog vaccinations | I86: =SUM(I89:I94) -> 44010 | J86: =SUM(J89:J94) -> 55395 | K86: =SUM(K89:K94) -> 65880
B88: Percent vaccine wastage | E88: 0.05 | F88: 0.1 | G88: 0.2
B89: Vaccines | C89: =(1+F88)*J21 -> 49500 | D89: N/A | E89: 0.74 | F89: 0.91 | G89: 1.08 | I89: =E89*$C89 -> 36630 | J89: =F89*$C89 -> 45045 | K89: =G89*$C89 -> 53460
B90: Syringes and needles | C90: =C89 -> 49500 | D90: N/A | E90: 0.04 | F90: 0.05 | G90: 0.06 | I90: =E90*$C90 -> 1980 | J90: 2475 | K90: 2970
B91: Vaccination certificates | C91: =$J$21 -> 45000 | D91: N/A | E91: 0.08 | F91: 0.125 | G91: 0.15 | I91: 3600 | J91: 5625 | K91: 6750
B92: Dog marking | C92: =$J$21 -> 45000 | D92: N/A | E92: 0.04 | F92: 0.05 | G92: 0.06 | I92: =E92*$C92 -> 1800 | J92: =F92*$C92 -> 2250 | K92: =G92*$C92 -> 2700
B93: Other costs per dog vaccinated 1 | C93: =$J$21 -> 45000 | D93: N/A | I93: =E93*$C93 -> 0 | J93: =F93*$C93 -> 0 | K93: =G93*$C93 -> 0
B94: Other costs per dog vaccinated 2 | C94: =$J$21 -> 45000 | D94: N/A | I94: 0 | J94: 0 | K94: 0
B96: Total variable costs | I96: =SUM(I89:I94) -> 44010 | J96: =SUM(J89:J94) -> 55395 | K96: =SUM(K89:K94) -> 65880
B99: Total costs | I99: =I96+I83 -> 66390 | J99: =J96+J83 -> 81360 | K99: =K96+K83 -> 95430
B100: Average cost per dog vaccinated | I100: =I99/$J$21 -> 1.475333333 | J100: =J99/$J$21 -> 1.808 | K100: =K99/$J$21 -> 2.120666667
B102: Notes
B103: * Costs have two components: (1) a measurement of the quantity used and (2) the unit cost of the resource. A pragmatic way of thinking about the costs in this sheet is to use the market prices for the resource used, i.e., the price one would have to pay for a resource during the dog vaccination campaign. For example:
B104: A common question relates to the value of vehicles. One useful way of thinking about this cost is to estimate how much would it cost to rent a vehicle for the duration of the campaign (e.g., rental of a pick-up truck for 20 days could be a good proxy because it includes maintainance, insurance, and depreciation).
B105: Another common question relates to the value of the work of a person that participates only part-time on the campaign. One pragmatic way of estimating this cost would be to take the person's monthly salary/wage + fringe benefits and multiply by the proportion of time dedicated to the vaccination campaign.
B107: References used in the worksheet to estimate the average values utilized
B108: Kayali U, Mindekem R, Hutton G, Ndoutamia A, Zinsstag J. Cost‐description of a pilot parenteral vaccination campaign against rabies in dogs in N'Djaména, Chad. Trop Med Int Health (2006) 11(7):1058-65.
B109: Kaare M, Lembo T, Hampson K, Ernest E, Estes A, Mentzel C, et al. Rabies control in rural Africa: evaluating strategies for effective domestic dog vaccination. Vaccine (2009) 27(1):152-60.
B110: Lapiz SMD, Miranda MEG, Garcia RG, Daguro LI, Paman MD, Madrinan FP, et al. Implementation of an intersectoral program to eliminate human and canine rabies: the Bohol Rabies Prevention and Elimination Project. PLoS Negl Trop Dis (2012) 6(12):e1891.
B111: Hatch B, Anderson A, Sambo M, Maziku M, Mchau G, Mbunda E, et al. Towards Canine Rabies Elimination in South‐Eastern Tanzania: Assessment of Health Economic Data. Transbound Emerg Dis (2016).
B112: Knobel DL, Cleaveland S, Coleman PG, Fèvre EM, Meltzer MI, Miranda MEG, et al. Re-evaluating the burden of rabies in Africa and Asia. Bull WHO (2005) 83(5):360-8.
B113: Tenzin, Wangdi K, Ward MP. Human and animal rabies prevention and control cost in Bhutan, 2001–2008: The cost–benefit of dog rabies elimination. Vaccine (2012) 31(1):260-70.
B114: US Department of Commerce BoEA. National income and product account tables. Table 1.1.9 Implicit price deflators for Gross Domestic Product (2015) [cited 2015 22 December]. Available from: http://www.bea.gov/iTable/iTable.cfm?reqid=9&step=3&isuri=1&903=13#reqid=9&step=3&isuri=1&904=2000&903=13&906=a&905=2015&910=x&911=0

Sheet Default_data (hidden)
A1: Country | B1: ISO3 | C1: WB Human Pop 2015 | D1: WB Urban (%) | E1: Urban H:D Ratio (Knoble) | F1: Rural H:D Ration (Knoble) | G1: Vax_coverage (Hampson) | H1: Public Vet PubHealth Activities | I1: Private Vet PubHealth Activities | J1: PARA: Pub Hlth | K1: All_PH_vacccinators | L1: Paravet_PH | M1: Years to elimination - best case scenario
A2: Afghanistan | B2: AFG | C2: 32526562 | D2: 0.26703 | E2: 7.5 | F2: 14.3 | G2: 0.01 | H2: 48 | I2: 0 | J2: 48 | K2: =H2+I2+J2 -> 96 | L2: =J2 -> 48 | M2: 13
A3: Albania | B3: ALB | C3: 2889167 | D3: 0.57407 | E3: 6.5 | F3: 6.5 | G3: 0.467 | H3: 2.599457408 | I3: 0.4261405587 | J3: 36.20064046 | K3: 39.22623843 | L3: 36.20064046 | M3: 9
A4: Algeria | B4: DZA | C4: 39666519 | D4: 0.70727 | E4: 21.2 | F4: 7.4 | G4: 0.237 | H4: 1321 | I4: 0 | J4: 35 | K4: 1356 | L4: 35 | M4: 10
A5: Andorra | B5: AND | C5: 70473 | D5: 0.85115 | E5: 6.5 | F5: 6.5 | G5: 0.7 | H5: 5 | I5: 0 | J5: 10 | K5: 15 | L5: 10 | M5: 7
A6: Angola | B6: AGO | C6: 25021974 | D6: 0.4405 | E6: 21.2 | F6: 7.4 | G6: 0.005 | H6: 0 | I6: 0 | J6: 0 | K6: 0 | L6: 0 | M6: 13
A7: Antigua and Barbuda | B7: ATG | C7: 91818 | D7: 0.23773 | E7: 7.5 | F7: 7.5 | G7: 0.551 | H7: 1.961157996 | I7: 0.00278969843 | J7: 0.8034331478 | K7: 2.767380842 | L7: 0.8034331478 | M7: 8
A8: Argentina | B8: ARG | C8: 43416755 | D8: 0.91751 | E8: 7.5 | F8: 7.5 | G8: 0.206599203 | H8: 467 | I8: 215 | J8: 1151 | K8: 1833 | L8: 1151 | M8: 10
A9: Armenia | B9: ARM | C9: 3017712 | D9: 0.62673 | E9: 6.5 | F9: 6.5 | G9: 0.467 | H9: 613 | I9: 0 | J9: 0 | K9: 613 | L9: 0 | M9: 9
A10: Australia | B10: AUS | C10: 23781169 | D10: 0.89423 | E10: 7.5 | F10: 14.3 | G10: 0.7 | H10: 190 | I10: 25 | J10: 886 | K10: 1101 | L10: 886 | M10: 7
A11: Austria | B11: AUT | C11: 8611088 | D11: 0.65968 | E11: 6.5 | F11: 6.5 | G11: 0.7 | H11: 214 | I11: 0 | J11: 0 | K11: 214 | L11: 0 | M11: 7
A12: Azerbaijan | B12: AZE | C12: 9651349 | D12: 0.5462 | E12: 6.5 | F12: 6.5 | G12: 0.211 | H12: 4 | I12: 0 | J12: 0 | K12: 4 | L12: 0 | M12: 10
A13: Bahamas | B13: BHS | C13: 388019 | D13: 0.82874 | E13: 7.5 | F13: 7.5 | G13: 0.551 | H13: 8.287771074 | I13: 0.01178914804 | J13: 3.395274636 | K13: 11.69483486 | L13: 3.395274636 | M13: 8
A14: Bahrain | B14: BHR | C14: 1377237 | D14: 0.88775 | E14: 7.5 | F14: 14.3 | G14: 0.185 | H14: 2 | I14: 1 | J14: 31 | K14: 34 | L14: 31 | M14: 10
A15: Bangladesh | B15: BGD | C15: 160995642 | D15: 0.34277 | E15: 7.5 | F15: 14.3 | G15: 0.05085 | H15: 49.47195295 | I15: 0 | J15: 478.2288785 | K15: 527.7008314 | L15: 478.2288785 | M15: 13
A16: Barbados | B16: BRB | C16: 284215 | D16: 0.31475 | E16: 7.5 | F16: 7.5 | G16: 0.551 | H16: 0 | I16: 1 | J16: 3 | K16: 4 | L16: 3 | M16: 8
A17: Belarus | B17: BLR | C17: 9513000 | D17: 0.76667 | E17: 6.5 | F17: 6.5 | G17: 0.467 | H17: 8.559089288 | I17: 1.403129392 | J17: 119.1958418 | K17: 129.1580605 | L17: 119.1958418 | M17: 9
A18: Belgium | B18: BEL | C18: 11285721 | D18: 0.97858 | E18: 6.5 | F18: 6.5 | G18: 0.7 | H18: 233.0612799 | I18: 89.71842317 | J18: 199.969742 | K18: 522.7494451 | L18: 199.969742 | M18: 7
A19: Belize | B19: BLZ | C19: 359287 | D19: 0.43973 | E19: 7.5 | F19: 7.5 | G19: 0.68 | H19: 1.3652145 | I19: 5.077185648 | J19: 0.2330279922 | K19: 6.67542814 | L19: 0.2330279922 | M19: 8
A20: Benin | B20: BEN | C20: 10879829 | D20: 0.4395 | E20: 21.2 | F20: 7.4 | G20: 0.008 | H20: 1 | I20: 0 | J20: 13 | K20: 14 | L20: 13 | M20: 13
A21: Bhutan | B21: BTN | C21: 774830 | D21: 0.38644 | E21: 7.5 | F21: 14.3 | G21: 0.1 | H21: 5 | I21: 0 | J21: 77 | K21: 82 | L21: 77 | M21: 13
A22: Bolivia | B22: BOL | C22: 10724705 | D22: 0.68512 | E22: 7.5 | F22: 7.5 | G22: 0.776641929 | H22: 107 | I22: 61 | J22: 239 | K22: 407 | L22: 239 | M22: 7
A23: Bosnia and Herzegovina | B23: BIH | C23: 3810416 | D23: 0.39767 | E23: 6.5 | F23: 6.5 | G23: 0.467 | H23: 3.428328684 | I23: 0.5620210957 | J23: 47.74369208 | K23: 51.73404186 | L23: 47.74369208 | M23: 9
A24: Botswana | B24: BWA | C24: 2262485 | D24: 0.57444 | E24: 21.2 | F24: 7.4 | G24: 0.005 | H24: 11 | I24: 0 | J24: 48 | K24: 59 | L24: 48 | M24: 13
A25: Brazil | B25: BRA | C25: 207847528 | D25: 0.85687 | E25: 7.5 | F25: 7.5 | G25: 0.6885 | H25: 1995 | I25: 0 | J25: 3614 | K25: 5609 | L25: 3614 | M25: 8
A26: Brunei Darussalam | B26: BRN | C26: 423188 | D26: 0.77202 | E26: 7.5 | F26: 14.3 | G26: 0.7 | H26: 1 | I26: 0 | J26: 15 | K26: 16 | L26: 15 | M26: 7
A27: Bulgaria | B27: BGR | C27: 7177991 | D27: 0.73948 | E27: 6.5 | F27: 6.5 | G27: 0.467 | H27: 500 | I27: 500 | J27: 0 | K27: 1000 | L27: 0 | M27: 9
A28: Burkina Faso | B28: BFA | C28: 18105570 | D28: 0.29859 | E28: 21.2 | F28: 7.4 | G28: 0.008 | H28: 3 | I28: 0 | J28: 400 | K28: 403 | L28: 400 | M28: 13
A29: Burundi | B29: BDI | C29: 11178921 | D29: 0.12057 | E29: 21.2 | F29: 7.4 | G29: 0.005 | H29: 2 | I29: 1 | J29: 1523 | K29: 1526 | L29: 1523 | M29: 13
A30: C_te d'Ivoire | B30: CIV | C30: 22701556 | D30: 0.5418 | E30: 21.2 | F30: 7.4 | G30: 0.008 | H30: 93 | I30: 0 | J30: 315 | K30: 408 | L30: 315 | M30: 13
A31: Cambodia | B31: CMR | C31: 15577899 | D31: 0.20723 | E31: 7.5 | F31: 14.3 | G31: 0.006 | H31: 0 | I31: 0 | J31: 0 | K31: 0 | L31: 0 | M31: 13
A32: Cameroon | B32: KHM | C32: 23344179 | D32: 0.54381 | E32: 21.2 | F32: 7.4 | G32: 0.008 | H32: 16 | I32: 0 | J32: 0 | K32: 16 | L32: 0 | M32: 13
A33: Canada | B33: CMR | C33: 35851774 | D33: 0.81828 | E33: 7.5 | F33: 7.5 | G33: 0.7 | H33: 155.3783353 | I33: 0 | J33: 1366.392396 | K33: 1521.770731 | L33: 1366.392396 | M33: 7
A34: Cape Verde | B34: CPV | C34: 520502 | D34: 0.65526 | E34: 21.2 | F34: 7.4 | G34: 0.008 | H34: 1 | I34: 0 | J34: 0 | K34: =H34+I34+J34 -> 1 | L34: =J34 -> 0 | M34: 13
A35: Central African Republic | B35: CAF | C35: 4900274 | D35: 0.40037 | E35: 21.2 | F35: 7.4 | G35: 0.005 | H35: 2 | I35: 0 | J35: 30 | K35: 32 | L35: 30 | M35: 13
A36: Chad | B36: TCD | C36: 14037472 | D36: 0.22471 | E36: 21.2 | F36: 7.4 | G36: 0.008 | H36: 211 | I36: 0 | J36: 200 | K36: 411 | L36: 200 | M36: 13
A37: Chile | B37: CHL | C37: 17948141 | D37: 0.8953 | E37: 7.5 | F37: 7.5 | G37: 0.648 | H37: 199 | I37: 21 | J37: 272 | K37: 492 | L37: 272 | M37: 8
A38: China | B38: CHN | C38: 1371220000 | D38: 0.55614 | E38: 48.3 | F38: 48.3 | G38: 0.142 | H38: 13748.61631 | I38: 1028.916457 | J38: 7608.041355 | K38: 22385.57412 | L38: 7608.041355 | M38: 13
A39: Colombia | B39: COL | C39: 48228704 | D39: 0.76436 | E39: 7.5 | F39: 7.5 | G39: 0.732117866 | H39: 262 | I39: 0 | J39: 0 | K39: 262 | L39: 0 | M39: 7
A40: Comoros | B40: COM | C40: 788474 | D40: 0.28296 | E40: 21.2 | F40: 7.4 | G40: 0.005 | H40: 1.603308865 | I40: 0.6282130135 | J40: 10.3463952 | K40: 12.57791707 | L40: 10.3463952 | M40: 13
A41: Congo | B41: COG | C41: 4620330 | D41: 0.6538 | E41: 21.2 | F41: 7.4 | G41: 0.000772227 | H41: 6 | I41: 0 | J41: 18 | K41: 24 | L41: 18 | M41: 13
A42: Cook Islands | B42: COK | C42: 18027 | D42: 1 | E42: 7.5 | F42: 14.3 | G42: 0.7 | H42: 0.2094906591 | I42: 0.01260823411 | J42: 0.7754063979 | K42: 0.9975052912 | L42: 0.7754063979 | M42: 7
A43: Costa Rica | B43: CRI | C43: 4807850 | D43: 0.76821 | E43: 7.5 | F43: 7.5 | G43: 0.22 | H43: 21 | I43: 128 | J43: 25 | K43: 174 | L43: 25 | M43: 10
A44: Croatia | B44: HRV | C44: 4224404 | D44: 0.58964 | E44: 6.5 | F44: 6.5 | G44: 0.467 | H44: 220 | I44: 272 | J44: 0 | K44: 492 | L44: 0 | M44: 9
A45: Cuba | B45: CUB | C45: 11389562 | D45: 0.77074 | E45: 7.5 | F45: 7.5 | G45: 0.646449 | H45: 571 | I45: 0 | J45: 260 | K45: 831 | L45: 260 | M45: 8
A46: Cyprus | B46: CYP | C46: 1165300 | D46: 0.66921 | E46: 6.5 | F46: 6.5 | G46: 0.467 | H46: 30 | I46: 5 | J46: 41 | K46: 76 | L46: 41 | M46: 9
A47: Czech Republic | B47: CZE | C47: 10551219 | D47: 0.72992 | E47: 6.5 | F47: 6.5 | G47: 0.467 | H47: 419 | I47: 0 | J47: 0 | K47: 419 | L47: 0 | M47: 9
A48: Denmark | B48: DNK | C48: 5676002 | D48: 0.87676 | E48: 6.5 | F48: 6.5 | G48: 0.7 | H48: 290 | I48: 0 | J48: 0 | K48: 290 | L48: 0 | M48: 7
A49: Djibouti | B49: DJI | C49: 887861 | D49: 0.77343 | E49: 21.2 | F49: 7.4 | G49: 0.001 | H49: 3 | I49: 2 | J49: 15 | K49: 20 | L49: 15 | M49: 13
A50: Dominica | B50: DMA | C50: 72680 | D50: 0.69539 | E50: 7.5 | F50: 7.5 | G50: 0.551 | H50: 1.552385841 | I50: 0.002208230215 | J50: 0.6359703019 | K50: 2.190564373 | L50: 0.6359703019 | M50: 8
A51: Dominican Republic | B51: DOM | C51: 10528391 | D51: 0.7898 | E51: 7.5 | F51: 7.5 | G51: 0.266962762 | H51: 120 | I51: 0 | J51: 10 | K51: 130 | L51: 10 | M51: 10
A52: DRC | B52: COD | C52: 77266814 | D52: 0.42494 | E52: 21.2 | F52: 7.4 | G52: 0.005 | H52: 100 | I52: 7 | J52: 128 | K52: 235 | L52: 128 | M52: 13
A53: Ecuador | B53: ECU | C53: 16144363 | D53: 0.63742 | E53: 7.5 | F53: 7.5 | G53: 0.784776916 | H53: 160 | I53: 150 | J53: 320 | K53: 630 | L53: 320 | M53: 7
A54: Egypt | B54: EGY | C54: 91508084 | D54: 0.43135 | E54: 21.2 | F54: 7.4 | G54: 0.237 | H54: 0 | I54: 0 | J54: 0 | K54: 0 | L54: 0 | M54: 10
A55: El Salvador | B55: SLV | C55: 6126583 | D55: 0.66726 | E55: 7.5 | F55: 7.5 | G55: 0.657 | H55: 23.27971773 | I55: 86.5764675 | J55: 3.973606992 | K55: 113.8297922 | L55: 3.973606992 | M55: 8
A56: Equatorial Guinea | B56: GNQ | C56: 845060 | D56: 0.39923 | E56: 21.2 | F56: 7.4 | G56: 0.005 | H56: 0.7603220849 | I56: 0.1246429647 | J56: 10.58841985 | K56: 11.4733849 | L56: 10.58841985 | M56: 13
A57: Eritrea | B57: ERI | C57: 5222000 | D57: 0.377 | E57: 21.2 | F57: 7.4 | G57: 0.001 | H57: 50.00006336 | I57: 0.05882360396 | J57: 4.235299485 | K57: 54.29418645 | L57: 4.235299485 | M57: 13
A58: Estonia | B58: EST | C58: 1311998 | D58: 0.67538 | E58: 6.5 | F58: 6.5 | G58: 0.467 | H58: 41 | I58: 6 | J58: 7 | K58: 54 | L58: 7 | M58: 9
A59: Ethiopia | B59: ETH | C59: 99390750 | D59: 0.19472 | E59: 21.2 | F59: 7.4 | G59: 0.005 | H59: 310 | I59: 25 | J59: 2159 | K59: 2494 | L59: 2159 | M59: 13
A60: Fiji | B60: FJI | C60: 892145 | D60: 0.53728 | E60: 7.5 | F60: 14.3 | G60: 0.7 | H60: 2 | I60: 0 | J60: 10 | K60: 12 | L60: 10 | M60: 7
A61: Finland | B61: FIN | C61: 5482013 | D61: 0.84221 | E61: 6.5 | F61: 6.5 | G61: 0.7 | H61: 179 | I61: 0 | J61: 64 | K61: 243 | L61: 64 | M61: 7
A62: France | B62: FRA | C62: 66808385 | D62: 0.7952 | E62: 6.5 | F62: 6.5 | G62: 0.7 | H62: 971 | I62: 0 | J62: 2784 | K62: 3755 | L62: 2784 | M62: 7
A63: French Guiana | B63: GUF | C63: 276000 | D63: 0.844 | E63: 7.5 | F63: 7.5 | G63: 0.7 | H63: 4 | I63: 2 | J63: 8 | K63: 14 | L63: 8 | M63: 7
A64: Gabon | B64: GAB | C64: 1725292 | D64: 0.87156 | E64: 21.2 | F64: 7.4 | G64: 0.007866755 | H64: 1.552289317 | I64: 0.2544736586 | J64: 21.6175373 | K64: 23.42430027 | L64: 21.6175373 | M64: 13
A65: Gambia | B65: GMB | C65: 1990924 | D65: 0.59632 | E65: 21.2 | F65: 7.4 | G65: 0.008 | H65: 7.710897336 | I65: 0.8707699815 | J65: 12.42565849 | K65: 21.0073258 | L65: 12.42565849 | M65: 13
A66: Georgia | B66: GEO | C66: 3679000 | D66: 0.53641 | E66: 6.5 | F66: 6.5 | G66: 0.211 | H66: 120 | I66: 450 | J66: 292 | K66: =H66+I66+J66 -> 862 | L66: =J66 -> 292 | M66: 10
A67: Germany | B67: DEU | C67: 81413145 | D67: 0.75301 | E67: 6.5 | F67: 6.5 | G67: 0.7 | H67: 1297 | I67: 1457 | J67: 0 | K67: 2754 | L67: 0 | M67: 7
A68: Ghana | B68: GHA | C68: 27409893 | D68: 0.54042 | E68: 21.2 | F68: 7.4 | G68: 0.008 | H68: 1 | I68: 0 | J68: 216 | K68: 217 | L68: 216 | M68: 13
A69: Greece | B69: GRC | C69: 10823732 | D69: 0.78007 | E69: 6.5 | F69: 6.5 | G69: 0.467 | H69: 425 | I69: 0 | J69: 0 | K69: 425 | L69: 0 | M69: 9
A70: Grenada | B70: GRD | C70: 106825 | D70: 0.35591 | E70: 7.5 | F70: 7.5 | G70: 0.551 | H70: 2.281695342 | I70: 0.003245654825 | J70: 0.9347485897 | K70: 3.219689587 | L70: 0.9347485897 | M70: 8
A71: Guatemala | B71: GTM | C71: 16342897 | D71: 0.51571 | E71: 7.5 | F71: 7.5 | G71: 0.63 | H71: 8 | I71: 37 | J71: 10 | K71: 55 | L71: 10 | M71: 8
A72: Guinea | B72: GIN | C72: 12608590 | D72: 0.37161 | E72: 21.2 | F72: 7.4 | G72: 0.005 | H72: 12 | I72: 12 | J72: 0 | K72: 24 | L72: 0 | M72: 13
A73: Guinea-Bissau | B73: GNB | C73: 1844325 | D73: 0.49332 | E73: 21.2 | F73: 7.4 | G73: 0.008 | H73: 2 | I73: 0 | J73: 11 | K73: 13 | L73: 11 | M73: 13
A74: Guyana | B74: GUY | C74: 767085 | D74: 0.28553 | E74: 7.5 | F74: 7.5 | G74: 0.68 | H74: 2.914760524 | I74: 10.83989388 | J74: 0.4975194688 | K74: 14.25217387 | L74: 0.4975194688 | M74: 8
A75: Haiti | B75: HTI | C75: 10711067 | D75: 0.58645 | E75: 7.5 | F75: 7.5 | G75: 0.314095014 | H75: 12 | I75: 0 | J75: 15 | K75: 27 | L75: 15 | M75: 10
A76: Honduras | B76: HND | C76: 8075060 | D76: 0.5473 | E76: 7.5 | F76: 7.5 | G76: 0.82476 | H76: 30.68351763 | I76: 114.110944 | J76: 5.237359043 | K76: 150.0318207 | L76: 5.237359043 | M76: 7
A77: Hungary | B77: HUN | C77: 9844686 | D77: 0.71227 | E77: 6.5 | F77: 6.5 | G77: 0.467 | H77: 452 | I77: 0 | J77: 204 | K77: 656 | L77: 204 | M77: 9
A78: Iceland | B78: ISL | C78: 330823 | D78: 0.94137 | E78: 6.5 | F78: 6.5 | G78: 0.7 | H78: 25 | I78: 0 | J78: 0 | K78: 25 | L78: 0 | M78: 7
A79: India | B79: IND | C79: 1311050527 | D79: 0.32747 | E79: 7.5 | F79: 14.3 | G79: 0.15 | H79: 13145.32362 | I79: 983.7673479 | J79: 7274.198617 | K79: 21403.28959 | L79: 7274.198617 | M79: 13
A80: Indonesia | B80: IDN | C80: 257563815 | D80: 0.53742 | E80: 7.5 | F80: 14.3 | G80: 0.238 | H80: 1270 | I80: 0 | J80: 0 | K80: 1270 | L80: 0 | M80: 10
A81: Iran | B81: IRN | C81: 79109272 | D81: 0.73375 | E81: 7.5 | F81: 14.3 | G81: 0.181818182 | H81: 543.0055565 | I81: 199.204588 | J81: 288.4236313 | K81: 1030.633776 | L81: 288.4236313 | M81: 10
A82: Iraq | B82: IRQ | C82: 36423395 | D82: 0.69471 | E82: 7.5 | F82: 14.3 | G82: 0.185 | H82: 73 | I82: 0 | J82: 6 | K82: 79 | L82: 6 | M82: 10
A83: Ireland | B83: IRL | C83: 4640703 | D83: 0.63241 | E83: 6.5 | F83: 6.5 | G83: 0.7 | H83: 54 | I83: 606 | J83: 0 | K83: 660 | L83: 0 | M83: 7
A84: Israel | B84: ISR | C84: 8380400 | D84: 0.9214 | E84: 7.5 | F84: 14.3 | G84: 0.631788935 | H84: 238 | I84: 87 | J84: 0 | K84: 325 | L84: 0 | M84: 8
A85: Italy | B85: ITA | C85: 60802085 | D85: 0.68964 | E85: 6.5 | F85: 6.5 | G85: 0.7 | H85: 2500 | I85: 0 | J85: 1453 | K85: 3953 | L85: 1453 | M85: 7
A86: Jamaica | B86: JAM | C86: 2725941 | D86: 0.54788 | E86: 7.5 | F86: 7.5 | G86: 0.551 | H86: 58.22388844 | I86: 0.08282203193 | J86: 23.8527452 | K86: 82.15945567 | L86: 23.8527452 | M86: 8
A87: Japan | B87: JPN | C87: 126958472 | D87: 0.93498 | E87: 7.5 | F87: 14.3 | G87: 0.7 | H87: 5285 | I87: 0 | J87: 0 | K87: 5285 | L87: 0 | M87: 7
A88: Jordan | B88: JOR | C88: 7594547 | D88: 0.83679 | E88: 7.5 | F88: 14.3 | G88: 0.185 | H88: 128 | I88: 11 | J88: 325 | K88: 464 | L88: 325 | M88: 10
A89: Kazakhstan | B89: KAZ | C89: 17544126 | D89: 0.53247 | E89: 7.5 | F89: 14.3 | G89: 0.211 | H89: 273.7731004 | I89: 644.0478612 | J89: 122.7854129 | K89: 1040.606374 | L89: 122.7854129 | M89: 10
A90: Kenya | B90: KEN | C90: 46050302 | D90: 0.25622 | E90: 21.2 | F90: 7.4 | G90: 0.005 | H90: 80 | I90: 24 | J90: 1103 | K90: 1207 | L90: 1103 | M90: 13
A91: Kiribati | B91: KIR | C91: 112423 | D91: 0.44304 | E91: 7.5 | F91: 14.3 | G91: 0.7 | H91: 1.306460774 | I91: 0.07862958361 | J91: 4.835719392 | K91: 6.220809749 | L91: 4.835719392 | M91: 7
A92: Kuwait | B92: KWT | C92: 3892115 | D92: 0.98342 | E92: 7.5 | F92: 14.3 | G92: 0.185 | H92: 40 | I92: 0 | J92: 0 | K92: 40 | L92: 0 | M92: 10
A93: Kyrgyzstan | B93: KGZ | C93: 5957000 | D93: 0.35707 | E93: 7.5 | F93: 14.3 | G93: 0.211 | H93: 0 | I93: 0 | J93: 0 | K93: 0 | L93: 0 | M93: 10
A94: Laos | B94: LAO | C94: 6802023 | D94: 0.38614 | E94: 7.5 | F94: 14.3 | G94: 0.0139 | H94: 43.72097019 | I94: 4.220170868 | J94: 105.5042717 | K94: 153.4454128 | L94: 105.5042717 | M94: 13
A95: Latvia | B95: LVA | C95: 1978440 | D95: 0.67382 | E95: 6.5 | F95: 6.5 | G95: 0.467 | H95: 102 | I95: 86 | J95: 0 | K95: 188 | L95: 0 | M95: 9
A96: Lebanon | B96: LBN | C96: 5850743 | D96: 0.87792 | E96: 7.5 | F96: 14.3 | G96: 0.185 | H96: 40.15946397 | I96: 14.7327212 | J96: 21.33116004 | K96: 76.22334522 | L96: 21.33116004 | M96: 10
A97: Lesotho | B97: LSO | C97: 2135022 | D97: 0.27312 | E97: 21.2 | F97: 7.4 | G97: 0.005 | H97: 1 | I97: 0 | J97: 0 | K97: 1 | L97: 0 | M97: 13
A98: Liberia | B98: LBR | C98: 4503438 | D98: 0.49701 | E98: 21.2 | F98: 7.4 | G98: 0.008 | H98: 17.4419255 | I98: 1.969667664 | J98: 28.10663923 | K98: =H98+I98+J98 -> 47.51823239 | L98: =J98 -> 28.10663923 | M98: 13
A99: Libya | B99: LBY | C99: 6278438 | D99: 0.78554 | E99: 21.2 | F99: 7.4 | G99: 0.237 | H99: 60.11533853 | I99: 0.07072392769 | J99: 5.092122793 | K99: 65.27818525 | L99: 5.092122793 | M99: 10
A100: Lithuania | B100: LTU | C100: 2910199 | D100: 0.66508 | E100: 6.5 | F100: 6.5 | G100: 0.467 | H100: 533 | I100: 0 | J100: 0 | K100: 533 | L100: 0 | M100: 9
A101: Luxembourg | B101: LUX | C101: 569676 | D101: 0.9016 | E101: 6.5 | F101: 6.5 | G101: 0.7 | H101: 11.76437178 | I101: 4.5287698 | J101: 10.0939907 | K101: 26.38713228 | L101: 10.0939907 | M101: 7
A102: Macedonia | B102: MKD | C102: 2078453 | D102: 0.759 | E102: 6.5 | F102: 6.5 | G102: 0.467 | H102: 68 | I102: 0 | J102: 0 | K102: 68 | L102: 0 | M102: 9
A103: Madagascar | B103: MDG | C103: 24235390 | D103: 0.35105 | E103: 21.2 | F103: 7.4 | G103: 0.005 | H103: 8 | I103: 158 | J103: 74 | K103: 240 | L103: 74 | M103: 13
A104: Malawi | B104: MWI | C104: 17215232 | D104: 0.16272 | E104: 21.2 | F104: 7.4 | G104: 0.005 | H104: 35.00601678 | I104: 13.71615649 | J104: 225.8991338 | K104: 274.6213071 | L104: 225.8991338 | M104: 13
A105: Malaysia | B105: MYS | C105: 30331007 | D105: 0.74705 | E105: 7.5 | F105: 14.3 | G105: 0.7 | H105: 901.5000345 | I105: 72.2191595 | J105: 86.26636443 | K105: 1059.985558 | L105: 86.26636443 | M105: 7
A106: Maldives | B106: MDV | C106: 409163 | D106: 0.45536 | E106: 7.5 | F106: 14.3 | G106: 0.7 | H106: 12.16116757 | I106: 0.9742310223 | J106: 1.163726759 | K106: 14.29912535 | L106: 1.163726759 | M106: 7
A107: Mali | B107: MLI | C107: 17599694 | D107: 0.39916 | E107: 21.2 | F107: 7.4 | G107: 0.008 | H107: 303 | I107: 135 | J107: 0 | K107: 438 | L107: 0 | M107: 13
A108: Malta | B108: MLT | C108: 431333 | D108: 0.95407 | E108: 6.5 | F108: 6.5 | G108: 0.467 | H108: 19 | I108: 0 | J108: 21 | K108: 40 | L108: 21 | M108: 9
A109: Marshall Islands | B109: MHL | C109: 52993 | D109: 0.72684 | E109: 7.5 | F109: 14.3 | G109: 0.7 | H109: 0.6158283962 | I109: 0.03706374607 | J109: 2.279420383 | K109: 2.932312525 | L109: 2.279420383 | M109: 7
A110: Mauritania | B110: MRT | C110: 4067564 | D110: 0.59859 | E110: 21.2 | F110: 7.4 | G110: 0.008 | H110: 15.75377484 | I110: 1.779029551 | J110: 25.38628352 | K110: 42.91908791 | L110: 25.38628352 | M110: 13
A111: Mauritius | B111: MUS | C111: 1262605 | D111: 0.39671 | E111: 21.2 | F111: 7.4 | G111: 0.005 | H111: 12 | I111: 0 | J111: 0 | K111: 12 | L111: 0 | M111: 13
A112: Mexico | B112: MEX | C112: 127017224 | D112: 0.79246 | E112: 7.5 | F112: 7.5 | G112: 0.765 | H112: 445 | I112: 1972 | J112: 0 | K112: 2417 | L112: 0 | M112: 7
A113: Micronesia | B113: FSM | C113: 104460 | D113: 0.22424 | E113: 7.5 | F113: 14.3 | G113: 0.7 | H113: 1.21392324 | I113: 0.07306019501 | J113: 4.493201993 | K113: 5.780185428 | L113: 4.493201993 | M113: 7
A114: Moldova | B114: MDA | C114: 3554150 | D114: 0.44995 | E114: 6.5 | F114: 6.5 | G114: 0.467 | H114: 170 | I114: 105 | J114: 0 | K114: 275 | L114: 0 | M114: 9
A115: Monaco | B115: MCO | C115: 37731 | D115: 1 | E115: 6.5 | F115: 6.5 | G115: 0.7 | H115: 0.779182398 | I115: 0.2999512237 | J115: 0.6685490751 | K115: 1.747682697 | L115: 0.6685490751 | M115: 7
A116: Mongolia | B116: MNG | C116: 2959134 | D116: 0.7204 | E116: 7.5 | F116: 14.3 | G116: 0.15 | H116: 295 | I116: 0 | J116: 0 | K116: 295 | L116: 0 | M116: 13
A117: Morocco | B117: MAR | C117: 34377511 | D117: 0.60195 | E117: 21.2 | F117: 7.4 | G117: 0.140114353 | H117: 131 | I117: 0 | J117: 0 | K117: 131 | L117: 0 | M117: 13
A118: Mozambique | B118: MOZ | C118: 27977863 | D118: 0.32214 | E118: 21.2 | F118: 7.4 | G118: 0.1 | H118: 56.89110328 | I118: 22.29123297 | J118: 367.1269152 | K118: 446.3092515 | L118: 367.1269152 | M118: 13
A119: Myanmar | B119: MMR | C119: 53897154 | D119: 0.34098 | E119: 7.5 | F119: 14.3 | G119: 0.006 | H119: 36 | I119: 0 | J119: 0 | K119: 36 | L119: 0 | M119: 13
A120: Namibia | B120: NAM | C120: 2458830 | D120: 0.4666 | E120: 21.2 | F120: 7.4 | G120: 0.005 | H120: 11 | I120: 0 | J120: 73 | K120: 84 | L120: 73 | M120: 13
A121: Nauru | B121: NRU | C121: 10222 | D121: 1 | E121: 7.5 | F121: 14.3 | G121: 0.7 | H121: 0.1187892338 | I121: 0.007149352033 | J121: 0.43968515 | K121: 0.5656237359 | L121: 0.43968515 | M121: 7
A122: Nepal | B122: NPL | C122: 28513700 | D122: 0.18615 | E122: 7.5 | F122: 14.3 | G122: 0.0017 | H122: 4 | I122: 0 | J122: 10 | K122: 14 | L122: 10 | M122: 13
A123: Netherlands | B123: NLD | C123: 16936520 | D123: 0.90496 | E123: 6.5 | F123: 6.5 | G123: 0.7 | H123: 337 | I123: 66 | J123: 383 | K123: 786 | L123: 383 | M123: 7
A124: New Zealand | B124: NZL | C124: 4595700 | D124: 0.86284 | E124: 7.5 | F124: 14.3 | G124: 0.7 | H124: 239 | I124: 0 | J124: 683 | K124: 922 | L124: 683 | M124: 7
A125: Nicaragua | B125: NIC | C125: 6082032 | D125: 0.58779 | E125: 7.5 | F125: 7.5 | G125: 0.873 | H125: 23.11043337 | I125: 85.94690479 | J125: 3.944711903 | K125: 113.0020501 | L125: 3.944711903 | M125: 7
A126: Niger | B126: NER | C126: 19899120 | D126: 0.18732 | E126: 21.2 | F126: 7.4 | G126: 0.008 | H126: 77.06977835 | I126: 8.703273632 | J126: 124.1934244 | K126: 209.9664764 | L126: 124.1934244 | M126: 13
A127: Nigeria | B127: NGA | C127: 182201962 | D127: 0.47776 | E127: 21.2 | F127: 7.4 | G127: 0.12292 | H127: 696 | I127: 0 | J127: 758 | K127: 1454 | L127: 758 | M127: 13
A128: Niue | B128: NIU | C128: 1591 | D128: 1 | E128: 7.5 | F128: 14.3 | G128: 0.7 | H128: 0.01848891322 | I128: 0.001112758666 | J128: 0.06843465796 | K128: 0.08803632985 | L128: 0.06843465796 | M128: 7
A129: North_Korea | B129: PRK | C129: 25155317 | D129: 0.60875 | E129: 7.5 | F129: 14.3 | G129: 0.006 | H129: 161.6893775 | I129: 15.60708277 | J129: 390.1770693 | K129: 567.4735296 | L129: 390.1770693 | M129: 13
A130: Norway | B130: NOR | C130: 5195921 | D130: 0.80473 | E130: 6.5 | F130: 6.5 | G130: 0.7 | H130: 535 | I130: 0 | J130: 152 | K130: =H130+I130+J130 -> 687 | L130: =J130 -> 152 | M130: 7
A131: Oman | B131: OMN | C131: 4490541 | D131: 0.77641 | E131: 7.5 | F131: 14.3 | G131: 0.15 | H131: 193 | I131: 0 | J131: 13 | K131: 206 | L131: 13 | M131: 13
A132: Pakistan | B132: PAK | C132: 188924874 | D132: 0.38758 | E132: 7.5 | F132: 14.3 | G132: 0.05085 | H132: 58.05425762 | I132: 0 | J132: 561.191157 | K132: 619.2454146 | L132: 561.191157 | M132: 13
A133: Palau | B133: PLW | C133: 21291 | D133: 0.87071 | E133: 7.5 | F133: 14.3 | G133: 0.7 | H133: 1 | I133: 1 | J133: 0 | K133: 2 | L133: 0 | M133: 7
A134: Panama | B134: PAN | C134: 3929141 | D134: 0.66592 | E134: 7.5 | F134: 7.5 | G134: 0.066666667 | H134: 105 | I134: 20 | J134: 50 | K134: 175 | L134: 50 | M134: 13
A135: Papua New Guinea | B135: PNG | C135: 7619321 | D135: 0.13005 | E135: 7.5 | F135: 14.3 | G135: 0.7 | H135: 0 | I135: 0 | J135: 12 | K135: 12 | L135: 12 | M135: 7
A136: Paraguay | B136: PRY | C136: 6639123 | D136: 0.59666 | E136: 7.5 | F136: 7.5 | G136: 0.837 | H136: 82 | I136: 0 | J136: 119 | K136: 201 | L136: 119 | M136: 7
A137: Peru | B137: PER | C137: 31376670 | D137: 0.78609 | E137: 7.5 | F137: 7.5 | G137: 0.327375704 | H137: 221.0219823 | I137: 88.15810634 | J137: 233.5563102 | K137: 542.7363988 | L137: 233.5563102 | M137: 10
A138: Philippines | B138: PHL | C138: 100699395 | D138: 0.44373 | E138: 7.5 | F138: 14.3 | G138: 0.1 | H138: 367.4762436 | I138: 0 | J138: 87.42378375 | K138: 454.9000273 | L138: 87.42378375 | M138: 13
A139: Poland | B139: POL | C139: 37999494 | D139: 0.60539 | E139: 6.5 | F139: 6.5 | G139: 0.624 | H139: 611 | I139: 0 | J139: 0 | K139: 611 | L139: 0 | M139: 8
A140: Portugal | B140: PRT | C140: 10348648 | D140: 0.63468 | E140: 6.5 | F140: 6.5 | G140: 0.7 | H140: 330 | I140: 330 | J140: 0 | K140: 660 | L140: 0 | M140: 7
A141: Qatar | B141: QAT | C141: 2235355 | D141: 0.99244 | E141: 7.5 | F141: 14.3 | G141: 0.185 | H141: 15.34346297 | I141: 5.628834151 | J141: 8.149856396 | K141: 29.12215352 | L141: 8.149856396 | M141: 10
A142: Republic of Korea | B142: KOR | C142: 50617045 | D142: 0.82474 | E142: 7.5 | F142: 14.3 | G142: 0.7 | H142: 133 | I142: 437 | J142: 321 | K142: 891 | L142: 321 | M142: 7
A143: Romania | B143: ROU | C143: 19832389 | D143: 0.54564 | E143: 6.5 | F143: 6.5 | G143: 0.467 | H143: 850 | I143: 87 | J143: 1149 | K143: 2086 | L143: 1149 | M143: 9
A144: Russia | B144: RUS | C144: 144096812 | D144: 0.74008 | E144: 7.5 | F144: 14.3 | G144: 0.4 | H144: 2248.606227 | I144: 5289.818573 | J144: 1008.484923 | K144: 8546.909724 | L144: 1008.484923 | M144: 9
A145: Rwanda | B145: RWA | C145: 11609666 | D145: 0.28811 | E145: 21.2 | F145: 7.4 | G145: 0.26 | H145: 10.44551329 | I145: 1.712379227 | J145: 145.4666154 | K145: 157.6245079 | L145: 145.4666154 | M145: 10
A146: Saint Kitts and Nevis | B146: KNA | C146: 55572 | D146: 0.32047 | E146: 7.5 | F146: 7.5 | G146: 0.551 | H146: 1.186972839 | I146: 0.001688439316 | J146: 0.4862705231 | K146: 1.674931802 | L146: 0.4862705231 | M146: 8
A147: Saint Lucia | B147: LCA | C147: 184999 | D147: 0.18504 | E147: 7.5 | F147: 7.5 | G147: 0.551 | H147: 3.951428567 | I147: 0.005620808772 | J147: 1.618792926 | K147: 5.575842302 | L147: 1.618792926 | M147: 8
A148: Saint Vincent and the Grenadines | B148: VCT | C148: 109462 | D148: 0.5055 | E148: 7.5 | F148: 7.5 | G148: 0.551 | H148: 2.338019523 | I148: 0.003325774571 | J148: 0.9578230763 | K148: 3.299168374 | L148: 0.9578230763 | M148: 8
A149: Samoa | B149: WSM | C149: 193228 | D149: 0.19098 | E149: 7.5 | F149: 14.3 | G149: 0.7 | H149: 2.245490713 | I149: 0.1351452744 | J149: 8.311434374 | K149: 10.69207036 | L149: 8.311434374 | M149: 7
A150: San Marino | B150: SMR | C150: 31781 | D150: 0.9419 | E150: 6.5 | F150: 6.5 | G150: 0.7 | H150: 4 | I150: 0 | J150: 0 | K150: 4 | L150: 0 | M150: 7
A151: Sao Tome and Principe | B151: STP | C151: 190344 | D151: 0.65092 | E151: 21.2 | F151: 7.4 | G151: 0.008 | H151: 0.7372069665 | I151: 0.08325071241 | J151: 1.187965758 | K151: 2.008423437 | L151: 1.187965758 | M151: 13
A152: Saudi Arabia | B152: SAU | C152: 31540372 | D152: 0.8313 | E152: 7.5 | F152: 14.3 | G152: 0.185 | H152: 0 | I152: 160 | J152: 0 | K152: 160 | L152: 0 | M152: 10
A153: Senegal | B153: SEN | C153: 15129273 | D153: 0.43721 | E153: 21.2 | F153: 7.4 | G153: 0.008 | H153: 16 | I153: 16 | J153: 195 | K153: 227 | L153: 195 | M153: 13
A154: Serbia and Montenegro | B154: SRB | C154: 7098247 | D154: 0.55553 | E154: 6.5 | F154: 6.5 | G154: 0.467 | H154: 160 | I154: 0 | J154: 0 | K154: 160 | L154: 0 | M154: 9
A155: Seychelles | B155: SYC | C155: 92900 | D155: 0.53887 | E155: 21.2 | F155: 7.4 | G155: 0.005 | H155: 0.1889059037 | I155: 0.07401764542 | J155: 1.219038438 | K155: 1.481961988 | L155: 1.219038438 | M155: 13
A156: Sierra Leone | B156: SLE | C156: 6453184 | D156: 0.39942 | E156: 21.2 | F156: 7.4 | G156: 0.008 | H156: 2 | I156: 1 | J156: 6 | K156: 9 | L156: 6 | M156: 13
A157: Singapore | B157: SGP | C157: 5535002 | D157: 1 | E157: 7.5 | F157: 14.3 | G157: 0.7 | H157: 36 | I157: 0 | J157: 186 | K157: 222 | L157: 186 | M157: 7
A158: Slovakia | B158: SVK | C158: 5424050 | D158: 0.53598 | E158: 6.5 | F158: 6.5 | G158: 0.467 | H158: 347 | I158: 350 | J158: 25 | K158: 722 | L158: 25 | M158: 9
A159: Slovenia | B159: SVN | C159: 2063768 | D159: 0.4965 | E159: 6.5 | F159: 6.5 | G159: 0.467 | H159: 117 | I159: 0 | J159: 0 | K159: 117 | L159: 0 | M159: 9
A160: Solomon Islands | B160: SLB | C160: 583591 | D160: 0.22329 | E160: 7.5 | F160: 14.3 | G160: 0.7 | H160: 6.781875145 | I160: 0.4081684115 | J160: 25.10235731 | K160: 32.29240086 | L160: 25.10235731 | M160: 7
A161: Somalia | B161: SOM | C161: 10787104 | D161: 0.39551 | E161: 21.2 | F161: 7.4 | G161: 0.001 | H161: 103.285309 | I161: 0.1215121282 | J161: 8.748873231 | K161: 112.1556943 | L161: 8.748873231 | M161: 13
A162: South Africa | B162: ZAF | C162: 54956920.37 | D162: 0.64801 | E162: 21.2 | F162: 7.4 | G162: 0.63 | H162: 27 | I162: 0 | J162: 84 | K162: =H162+I162+J162 -> 111 | L162: =J162 -> 84 | M162: 8
A163: Spain | B163: ESP | C163: 46418269 | D163: 0.79579 | E163: 6.5 | F163: 6.5 | G163: 0.7 | H163: 958.583079 | I163: 369.0126578 | J163: 822.4772948 | K163: 2150.073032 | L163: 822.4772948 | M163: 7
A164: Sri Lanka | B164: LKA | C164: 20966000 | D164: 0.18356 | E164: 7.5 | F164: 14.3 | G164: 0.493 | H164: 76.50996237 | I164: 0 | J164: 18.20196685 | K164: 94.71192923 | L164: 18.20196685 | M164: 9
A165: Sudan | B165: SDN | C165: 52574694 | D165: 0.33806 | E165: 21.2 | F165: 7.4 | G165: 0.002 | H165: 503.3967888 | I165: 0.5922315163 | J165: 42.64066917 | K165: 546.6296895 | L165: 42.64066917 | M165: 13
A166: Suriname | B166: SUR | C166: 542975 | D166: 0.66043 | E166: 7.5 | F166: 7.5 | G166: 0.68 | H166: 1 | I166: 0 | J166: 14 | K166: 15 | L166: 14 | M166: 8
A167: Swaziland | B167: SWZ | C167: 1286970 | D167: 0.21308 | E167: 21.2 | F167: 7.4 | G167: 0.005 | H167: 3 | I167: 0 | J167: 14 | K167: 17 | L167: 14 | M167: 13
A168: Sweden | B168: SWE | C168: 9798871 | D168: 0.85815 | E168: 6.5 | F168: 6.5 | G168: 0.7 | H168: 108 | I168: 0 | J168: 81 | K168: 189 | L168: 81 | M168: 7
A169: Switzerland | B169: CHE | C169: 8286976 | D169: 0.73912 | E169: 6.5 | F169: 6.5 | G169: 0.7 | H169: 280 | I169: 0 | J169: 230 | K169: 510 | L169: 230 | M169: 7
A170: Syria | B170: SYR | C170: 18502413 | D170: 0.57656 | E170: 7.5 | F170: 14.3 | G170: 0.185 | H170: 127.0004491 | I170: 46.5908163 | J170: 67.4577456 | K170: 241.049011 | L170: 67.4577456 | M170: 10
A171: Tajikistan | B171: TJK | C171: 8481855 | D171: 0.26782 | E171: 7.5 | F171: 14.3 | G171: 0.147097382 | H171: 132.3579037 | I171: 311.3703453 | J171: 59.36163867 | K171: 503.0898877 | L171: 59.36163867 | M171: 13
A172: Tanzania | B172: TZA | C172: 53470420 | D172: 0.31608 | E172: 21.2 | F172: 7.4 | G172: 0.005 | H172: 108.7285039 | I172: 42.60230988 | J172: 701.641521 | K172: 852.9723348 | L172: 701.641521 | M172: 13
A173: Thailand | B173: THA | C173: 67959359 | D173: 0.50374 | E173: 7.5 | F173: 14.3 | G173: 0.495 | H173: 248 | I173: 0 | J173: 59 | K173: 307 | L173: 59 | M173: 9
A174: Timor-Leste | B174: TLS | C174: 1245015 | D174: 0.3277 | E174: 7.5 | F174: 14.3 | G174: 0.238 | H174: 12.48321461 | I174: 0.9342165534 | J174: 6.907808818 | K174: 20.32523998 | L174: 6.907808818 | M174: 10
A175: Togo | B175: TGO | C175: 7304578 | D175: 0.39964 | E175: 21.2 | F175: 7.4 | G175: 0.08258369 | H175: 1 | I175: 0 | J175: 55 | K175: 56 | L175: 55 | M175: 13
A176: Tonga | B176: TON | C176: 106170 | D176: 0.23712 | E176: 7.5 | F176: 14.3 | G176: 0.7 | H176: 1.233795045 | I176: 0.07425618327 | J176: 4.566755271 | K176: 5.874806499 | L176: 4.566755271 | M176: 7
A177: Trinidad and Tobago | B177: TTO | C177: 1360088 | D177: 0.08445 | E177: 7.5 | F177: 7.5 | G177: 0.551 | H177: 29.05037636 | I177: 0.04132343721 | J177: 11.90114992 | K177: 40.99284972 | L177: 11.90114992 | M177: 8
A178: Tunisia | B178: TUN | C178: 11107800 | D178: 0.66842 | E178: 21.2 | F178: 7.4 | G178: 0.4845 | H178: 245 | I178: 0 | J178: 94 | K178: 339 | L178: 94 | M178: 9
A179: Turkey | B179: TUR | C179: 78665830 | D179: 0.73397 | E179: 6.5 | F179: 6.5 | G179: 0.467 | H179: 2643 | I179: 0 | J179: 345 | K179: 2988 | L179: 345 | M179: 9
A180: Turkmenistan | B180: TKM | C180: 5373502 | D180: 0.50037 | E180: 7.5 | F180: 14.3 | G180: 0.211 | H180: 400 | I180: 683 | J180: 300 | K180: 1383 | L180: 300 | M180: 10
A181: Tuvalu | B181: TUV | C181: 9916 | D181: 0.59717 | E181: 7.5 | F181: 14.3 | G181: 0.7 | H181: 0.1152332266 | I181: 0.006935333082 | J181: 0.4265229845 | K181: 0.5486915442 | L181: 0.4265229845 | M181: 7
A182: Uganda | B182: UGA | C182: 39032383 | D182: 0.16101 | E182: 21.2 | F182: 7.4 | G182: 0.1 | H182: 98 | I182: 0 | J182: 100 | K182: 198 | L182: 100 | M182: 13
A183: Ukraine | B183: UKR | C183: 45198200 | D183: 0.69695 | E183: 6.5 | F183: 6.5 | G183: 0.467 | H183: 5920 | I183: 0 | J183: 0 | K183: 5920 | L183: 0 | M183: 9
A184: United Arab Emirates | B184: ARE | C184: 9156963 | D184: 0.85541 | E184: 7.5 | F184: 14.3 | G184: 0.185 | H184: 32 | I184: 0 | J184: 0 | K184: 32 | L184: 0 | M184: 10
A185: United Kingdom | B185: GBR | C185: 65138232 | D185: 0.82592 | E185: 6.5 | F185: 6.5 | G185: 0.7 | H185: 90 | I185: 320 | J185: 1037 | K185: 1447 | L185: 1037 | M185: 7
A186: United States of America | B186: USA | C186: 321418820 | D186: 0.81617 | E186: 7.5 | F186: 7.5 | G186: 0.767263427 | H186: 1393 | I186: 0 | J186: 12250 | K186: 13643 | L186: 12250 | M186: 7
A187: Uruguay | B187: URY | C187: 3431555 | D187: 0.95311 | E187: 7.5 | F187: 7.5 | G187: 0.648 | H187: 125 | I187: 0 | J187: 253 | K187: 378 | L187: 253 | M187: 8
A188: Uzbekistan | B188: UZB | C188: 31299500 | D188: 0.36365 | E188: 7.5 | F188: 14.3 | G188: 0.40333897 | H188: 560 | I188: 2224 | J188: 0 | K188: 2784 | L188: 0 | M188: 9
A189: Vanuatu | B189: VUT | C189: 264652 | D189: 0.26128 | E189: 7.5 | F189: 14.3 | G189: 0.7 | H189: 0 | I189: 0 | J189: 8 | K189: 8 | L189: 8 | M189: 7
A190: Venezuela | B190: VEN | C190: 31108083 | D190: 0.8899 | E190: 7.5 | F190: 7.5 | G190: 0.20568864 | H190: 219.130015 | I190: 87.40346535 | J190: 231.557048 | K190: 538.0905284 | L190: 231.557048 | M190: 10
A191: Viet Nam | B191: VNM | C191: 91703800 | D191: 0.33593 | E191: 7.5 | F191: 14.3 | G191: 0.25 | H191: 1000 | I191: 100 | J191: 2500 | K191: 3600 | L191: 2500 | M191: 10
A192: Yemen | B192: YEM | C192: 26832215 | D192: 0.34606 | E192: 7.5 | F192: 14.3 | G192: 0.185 | H192: 184.1761588 | I192: 67.56604125 | J192: 97.8272798 | K192: 349.5694798 | L192: 97.8272798 | M192: 10
A193: Zambia | B193: ZMB | C193: 16211767 | D193: 0.40922 | E193: 21.2 | F193: 7.4 | G193: 0.2 | H193: 32.96553817 | I193: 12.91665039 | J193: 212.731616 | K193: 258.6138046 | L193: 212.731616 | M193: 10
A194: Zimbabwe | B194: ZWE | C194: 15602751 | D194: 0.32376 | E194: 21.2 | F194: 7.4 | G194: 0.111524164 | H194: 26 | I194: 23 | J194: 133 | K194: =H194+I194+J194 -> 182 | L194: 133 | M194: 13
H199: =SUM(U2:U194) -> 0 | I199: =SUM(V2:V194) -> 0 | J199: =SUM(Z2:Z194) -> 0
H200: =SUM(AH2:AH194) -> 0 | I200: =SUM(AI2:AI194) -> 0 | J200: =SUM(BN2:BN194) -> 0

Sheet Cost_dog_vax_example
B2: Worked example for costing a vaccination campaign. The numbers used largely correspond to publish literature, but do not represent any specific country.
B4: Costs per dog vaccination campaign | J4: Total
B5: Summary of dog vaccination costs (per dog vaccinated) | I5: Lower bound | J5: Average | K5: Upper bound
B7: Cost per dog vaccinated (user input; these values determine all cost estimates)* | I7: 1.63 | J7: 2.17 | K7: 2.63
B9: Costs per dog vaccination campaign - user tables | J9: Total
B10: Summary of dog vaccination costs based on calculation tables (per dog vaccinated) | I10: Lower bound | J10: Average | K10: Upper bound
B12: Total dogs vaccinated in pilot campaign (user input) | J12: 999699.5867
B14: Average cost per dog vaccinated (calculated using worksheet) | I14: =I92 -> 1.627292912 | J14: =J92 -> 2.168570279 | K14: =K92 -> 2.626387419
B16: Human resources | I16: =I25/$J$12 -> 0.3102031892 | J16: =J25/$J$12 -> 0.5295490836 | K16: =K25/$J$12 -> 0.6287088725
B17: Transport costs | I17: =I38/$J$12 -> 0.137041169 | J17: =J38/$J$12 -> 0.1680504846 | K17: =K38/$J$12 -> 0.2020607017
B18: Awareness campaign | I18: =I49/$J$12 -> 0.0552165878 | J18: =J49/$J$12 -> 0.06902073475 | K18: =K49/$J$12 -> 0.0828248817
B19: Equipment at vaccination point | I19: =I58/$J$12 -> 0.03983196605 | J19: =J58/$J$12 -> 0.0498499756 | K19: =K58/$J$12 -> 0.0597929626
B20: Dog vaccinations (consumables) | I20: =I88/$J$12 -> 1.085 | J20: =J88/$J$12 -> 1.3521 | K20: =K88/$J$12 -> 1.653
B22: Item | C22: Units | D22: Work days | F22: Price/Unit | J22: Total cost
E23: Lower bound | F23: Average | G23: Upper bound | I23: Lower bound | J23: Average | K23: Upper bound
B25: Workers participating in campaign (per diem) | I25: =SUM(I27:I36) -> 310110 | J25: =SUM(J27:J36) -> 529390 | K25: =SUM(K27:K36) -> 628520
B27: Training supervisor | C27: 10 | D27: 5 | E27: 56 | F27: 70 | G27: 84 | I27: =E27*$D27*$C27 -> 2800 | J27: =F27*$D27*$C27 -> 3500 | K27: =G27*$D27*$C27 -> 4200
B28: Informational supervisor | C28: 5 | D28: 30 | E28: 21 | F28: 27 | G28: 32 | I28: =E28*$D28*$C28 -> 3150 | J28: 4050 | K28: 4800
B29: Vaccination supervisor | C29: 40 | D29: 30 | E29: 30 | F29: 38 | G29: 46 | I29: 36000 | J29: 45600 | K29: 55200
B30: Training technician | C30: 16 | D30: 5 | E30: 22 | F30: 28 | G30: 34 | I30: 1760 | J30: 2240 | K30: 2720
B31: Informational technician | C31: 0 | D31: 0 | E31: 20 | F31: 25 | G31: 30 | I31: 0 | J31: 0 | K31: 0
B32: Vaccination Technician | C32: 400 | D32: 30 | E32: 21 | F32: 38 | G32: 45 | I32: 252000 | J32: 456000 | K32: 540000
B33: Driver | C33: 10 | D33: 30 | E33: 24 | F33: 30 | G33: 36 | I33: 7200 | J33: 9000 | K33: 10800
B34: Other personnel 1 | C34: 2 | D34: 30 | E34: 120 | F34: 150 | G34: 180 | I34: 7200 | J34: 9000 | K34: 10800
B35: Other personnel 2 | C35: 0 | D35: 0 | E35: 0 | F35: 0 | G35: 0 | I35: 0 | J35: 0 | K35: 0
B36: Other Personnel 3 | C36: 0 | D36: 0 | E36: 0 | F36: 0 | G36: 0 | I36: 0 | J36: 0 | K36: 0
B38: Transportation and logistics | I38: =SUM(I40:I47) -> 137000 | J38: =SUM(J40:J47) -> 168000 | K38: =SUM(K40:K47) -> 202000
B40: Pick up (including gasoline) | C40: 10 | D40: 25 | E40: 194 | F40: 230 | G40: 276 | I40: =E40*$D40*$C40 -> 48500 | J40: =F40*$D40*$C40 -> 57500 | K40: =G40*$D40*$C40 -> 69000
B41: Vehicle | C41: 10 | D41: 25 | E41: 128 | F41: 160 | G41: 192 | I41: =E41*$D41*$C41 -> 32000 | J41: 40000 | K41: 48000
B42: Gasoline | C42: 800 | D42: 25 | E42: 2.1 | F42: 2.6 | G42: 3.1 | I42: 42000 | J42: 52000 | K42: 62000
B43: Maintenance vehicle | C43: 20 | D43: 25 | E43: 3 | F43: 5 | G43: 8 | I43: 1500 | J43: 2500 | K43: 4000
B44: Public transport | C44: 400 | D44: 25 | E44: 1.3 | F44: 1.6 | G44: 1.9 | I44: =E44*$D44*$C44 -> 13000 | J44: =F44*$D44*$C44 -> 16000 | K44: =G44*$D44*$C44 -> 19000
B45: Other transportation costs 1 | C45: 0 | D45: 0 | E45: 0 | F45: 0 | G45: 0 | I45: 0 | J45: 0 | K45: 0
B46: Other transportation costs 2 | C46: 0 | D46: 0 | E46: 0 | F46: 0 | G46: 0 | I46: 0 | J46: 0 | K46: 0
B47: Other transportation costs 3 | C47: 0 | D47: 0 | E47: 0 | F47: 0 | G47: 0 | I47: 0 | J47: 0 | K47: 0
B49: Awareness campaign | I49: =SUM(I51:I56) -> 55200 | J49: =SUM(J51:J56) -> 69000 | K49: =SUM(K51:K56) -> 82800
B51: Media (e.g. posters) | C51: 15000 | D51: N/A | E51: 0.48 | F51: 0.6 | G51: 0.72 | I51: =E51*$C51 -> 7200 | J51: =F51*$C51 -> 9000 | K51: =G51*$C51 -> 10800
B52: Air time (radio, car with speakers, etc.) | C52: 4 | D52: 20 | E52: 200 | F52: 250 | G52: 300 | I52: =E52*$D52*$C52 -> 16000 | J52: =F52*$D52*$C52 -> 20000 | K52: =G52*$D52*$C52 -> 24000
B53: Other costs | C53: 1 | D53: 1 | E53: 32000 | F53: 40000 | G53: 48000 | I53: =E53*$D53*$C53 -> 32000 | J53: =F53*$D53*$C53 -> 40000 | K53: =G53*$D53*$C53 -> 48000
B54: Other communication & awareness costs 1 | C54: 0 | D54: 0 | E54: 0 | F54: 0 | G54: 0 | I54: 0 | J54: 0 | K54: 0
B55: Other communication & awareness costs 2 | C55: 0 | D55: 0 | E55: 0 | F55: 0 | G55: 0 | I55: 0 | J55: 0 | K55: 0
B56: Other communication & awareness costs 3 | C56: 0 | D56: 0 | E56: 0 | F56: 0 | G56: 0 | I56: 0 | J56: 0 | K56: 0
B58: Equipment at vaccination point | I58: =SUM(I60:I66) -> 39820 | J58: =SUM(J60:J66) -> 49835 | K58: =SUM(K60:K66) -> 59775
B60: Tables | C60: 15 | D60: N/A | E60: 31 | F60: 45 | G60: 54 | I60: =E60*$C60 -> 465 | J60: =F60*$C60 -> 675 | K60: =G60*$C60 -> 810
B61: Coolers | C61: 45 | D61: N/A | E61: 15 | F61: 18 | G61: 21 | I61: =E61*$C61 -> 675 | J61: 810 | K61: 945
B62: Dog handling (e.g., muzzles) | C62: 40 | D62: N/A | E62: 112 | F62: 140 | G62: 168 | I62: 4480 | J62: 5600 | K62: 6720
B63: First-aid | C63: 15 | D63: N/A | E63: 280 | F63: 350 | G63: 420 | I63: 4200 | J63: 5250 | K63: 6300
B64: Other equipment / supplies 1 | C64: 15 | D64: N/A | E64: 500 | F64: 700 | G64: 900 | I64: =E64*$C64 -> 7500 | J64: =F64*$C64 -> 10500 | K64: =G64*$C64 -> 13500
B65: Other equipment / supplies 2 | C65: 15 | D65: N/A | E65: 500 | F65: 700 | G65: 900 | I65: 7500 | J65: 10500 | K65: 13500
B66: Other equipment / supplies 3 | C66: 15 | D66: N/A | E66: 1000 | F66: 1100 | G66: 1200 | I66: 15000 | J66: 16500 | K66: 18000
B68: Other costs associated with the campaign (per work day) | I68: =SUM(I70:I72) -> 0 | J68: =SUM(J70:J72) -> 0 | K68: =SUM(K70:K72) -> 0
B70: Other costs 1 | C70: 0 | D70: 0 | E70: 0 | F70: 0 | G70: 0 | I70: =E70*$D70*$C70 -> 0 | J70: 0 | K70: 0
B71: Other costs 2 | C71: 0 | D71: 0 | E71: 0 | F71: 0 | G71: 0 | I71: 0 | J71: 0 | K71: 0
B72: Other costs 3 | C72: 0 | D72: 0 | E72: 0 | F72: 0 | G72: 0 | I72: 0 | J72: 0 | K72: 0
B75: Total fixed costs | I75: =I25+I38+I49+I58+I68 -> 542130 | J75: =J25+J38+J49+J58+J68 -> 816225 | K75: =K25+K38+K49+K58+K68 -> 973095
B78: Dog vaccinations | I78: =SUM(I81:I86) -> 1084674.052 | J78: =SUM(J81:J86) -> 1351693.811 | K78: =SUM(K81:K86) -> 1652503.417
B80: Percent vaccine wastage | E80: 0.05 | F80: 0.1 | G80: 0.2
B81: Vaccines | C81: =(1+F80)*J12 -> 1099669.545 | D81: N/A | E81: 0.74 | F81: 0.91 | G81: 1.08 | I81: =E81*$C81 -> 813755.4635 | J81: =F81*$C81 -> 1000699.286 | K81: =G81*$C81 -> 1187643.109
B82: Syringes and needles | C82: =C81 -> 1099669.545 | D82: N/A | E82: 0.11 | F82: 0.131 | G82: 0.15 | I82: =E82*$C82 -> 120963.65 | J82: 144056.7104 | K82: 164950.4318
B83: Vaccination certificates | C83: =$J$12 -> 999699.5867 | D83: N/A | E83: 0.08 | F83: 0.107 | G83: 0.15 | I83: 79975.96693 | J83: 106967.8558 | K83: 149954.938
B84: Dog marking | C84: =$J$12 -> 999699.5867 | D84: N/A | E84: 0.07 | F84: 0.1 | G84: 0.15 | I84: =E84*$C84 -> 69978.97107 | J84: =F84*$C84 -> 99969.95867 | K84: =G84*$C84 -> 149954.938
B85: Other costs per dog vaccinated 1 | C85: =$J$12 -> 999699.5867 | D85: N/A | E85: 0 | F85: 0 | G85: 0 | I85: =E85*$C85 -> 0 | J85: =F85*$C85 -> 0 | K85: =G85*$C85 -> 0
B86: Other costs per dog vaccinated 2 | C86: =$J$12 -> 999699.5867 | D86: N/A | E86: 0 | F86: 0 | G86: 0 | I86: 0 | J86: 0 | K86: 0
B88: Total variable costs | I88: =SUM(I81:I86) -> 1084674.052 | J88: =SUM(J81:J86) -> 1351693.811 | K88: =SUM(K81:K86) -> 1652503.417
B91: Total costs | I91: =I88+I75 -> 1626804.052 | J91: =J88+J75 -> 2167918.811 | K91: =K88+K75 -> 2625598.417
B92: Average cost per dog vaccinated | I92: =I91/$J$12 -> 1.627292912 | J92: =J91/$J$12 -> 2.168570279 | K92: =K91/$J$12 -> 2.626387419
B95: References used in the worksheet to estimate the average values utilized
B96: Kayali U, Mindekem R, Hutton G, Ndoutamia A, Zinsstag J. Cost‐description of a pilot parenteral vaccination campaign against rabies in dogs in N'Djaména, Chad. Trop Med Int Health (2006) 11(7):1058-65.
B97: Kaare M, Lembo T, Hampson K, Ernest E, Estes A, Mentzel C, et al. Rabies control in rural Africa: evaluating strategies for effective domestic dog vaccination. Vaccine (2009) 27(1):152-60.
B98: Lapiz SMD, Miranda MEG, Garcia RG, Daguro LI, Paman MD, Madrinan FP, et al. Implementation of an intersectoral program to eliminate human and canine rabies: the Bohol Rabies Prevention and Elimination Project. PLoS Negl Trop Dis (2012) 6(12):e1891.
B99: Hatch B, Anderson A, Sambo M, Maziku M, Mchau G, Mbunda E, et al. Towards Canine Rabies Elimination in South‐Eastern Tanzania: Assessment of Health Economic Data. Transbound Emerg Dis (2016).
B100: Knobel DL, Cleaveland S, Coleman PG, Fèvre EM, Meltzer MI, Miranda MEG, et al. Re-evaluating the burden of rabies in Africa and Asia. Bull WHO (2005) 83(5):360-8.
B101: Tenzin, Wangdi K, Ward MP. Human and animal rabies prevention and control cost in Bhutan, 2001–2008: The cost–benefit of dog rabies elimination. Vaccine (2012) 31(1):260-70.
B102: US Department of Commerce BoEA. National income and product account tables. Table 1.1.9 Implicit price deflators for Gross Domestic Product (2015) [cited 2015 22 December]. Available from: http://www.bea.gov/iTable/iTable.cfm?reqid=9&step=3&isuri=1&903=13#reqid=9&step=3&isuri=1&904=2000&903=13&906=a&905=2015&910=x&911=0

Sheet Flowchart
B2: Figure 1. Global Dog Rabies Elimination Pathway (GDREP): Phases for a dog rabies elimination program based on 70% dog population vaccination coverage.
B3: Implementation Phase: | C3: Phase I: Preparation | F3: Phase II: Scale-up dog vaccination | I3: Phase III: Sustained 70% dog vaccination
B4: Program year | C4: 1 | D4: =C4+1 -> 2 | E4: =D4+1 -> 3 | F4: 4 | G4: 5 | H4: 6 | I4: 7 | J4: 8 | K4: 9 | L4: 10 | M4: 11 | N4: 12 | O4: 13
B5: Expected dog vax coverage: | C5: <18% | F5: =CONCATENATE(TEXT(F16,"#,##0%")," - ", TEXT(G16,"#,##0%")) -> 18% - 35% | G5: =CONCATENATE(TEXT(F17,"#,##0%")," - ", TEXT(G17,"#,##0%")) -> 35% - 53% | H5: =CONCATENATE(TEXT(F18,"#,##0%")," - ", TEXT(G18,"#,##0%")) -> 53% - 70% | I5: >70%
B6: Activities acheived: | C6: Field studies | F6: Pilot implementation | I6: Mass vaccination of dogs
C7: Workforce training | F7: Scaling-up vaccination coverage | I7: Surveillance to establish disease freedom
C8: Strengthening lab capacity | F8: Logistical improvements
F9: Operational equipment
B10: Cost estimates: | C10: Current Vaccination Coverage + Infrastructure Improvements* | F10: Expected Vaccination Coverage + Infrastructure Improvements* | I10: Vaccination of 70% of the dog population
B13: Notes: There is variation between and within countries for the implementation and scaling-up of national dog vaccination campaigns. Based on expert opinion from dog vaccine implementation strategies in Haiti, Ethiopia, United States, Vietnam, and Latin America, we assumed that the current dog rabies vaccination coverage was directly correlated to the number of years it will take to achieve elimination, as illustrated by the three distinct Phases shown in the figure. For countries in Phase II, we estimated dog vaccination as the median value in the corresponding year range (e.g., we used 26% vaccination coverage in the rage 18-35%), or the current country vaccination rate for those countries that were already vaccinating dogs at a rate equivalent to Phase II. *Infrastructural improvement costs were estimated to be equivalent to the cost of vaccination for 10% of the country’s unvaccinated dog population.
E15: Phase II | F15: Lower bound | G15: Upper bound | H15: Median
E16: Year 4 | F16: 0.175 | G16: 0.35 | H16: =MEDIAN(F16:G16) -> 0.2625
E17: Year 5 | F17: =G16 -> 0.35 | G17: 0.525 | H17: =MEDIAN(F17:G17) -> 0.4375
E18: Year 6 | F18: =G17 -> 0.525 | G18: 0.7 | H18: 0.6125
E20: WHO recommended coverage to elimination | H20: 0.7
E21: WHO years until elimination | H21: 7
B23: Source:
B24: Wallace, RM, Undurraga, EA, Blanton JD, Cleaton, J, & Franka, R. 2017 Elimination of dog-mediated human rabies deaths by 2030: Needs assessment and alternatives for progress based on dog vaccination. Frontiers in Veterinary Science, in press.

Sheet Calculations
B2: Internal calculations
B3: Please do not modify the values in this worksheet
B5: Mean estimates | C5: Years
B6: Discounted values | C6: 0 | D6: 1 | E6: 2 | F6: 3 | G6: 4 | H6: 5 | I6: 6 | J6: 7 | K6: 8 | L6: 9 | M6: 10 | N6: 11 | O6: 12 | P6: Total
B7: Dog vaccines | C7: =Cost_dog_vax_aid!J5/(1+Calculations!$C$22)^Calculations!C6 -> 1.808 | D7: =$C$7/(1+Calculations!$C$22)^Calculations!D6 -> 1.808 | E7: =$C$7/(1+Calculations!$C$22)^Calculations!E6 -> 1.808 | F7: =$C$7/(1+Calculations!$C$22)^Calculations!F6 -> 1.808 | G7: =$C$7/(1+Calculations!$C$22)^Calculations!G6 -> 1.808 | H7: =$C$7/(1+Calculations!$C$22)^Calculations!H6 -> 1.808 | I7: =$C$7/(1+Calculations!$C$22)^Calculations!I6 -> 1.808 | J7: =$C$7/(1+Calculations!$C$22)^Calculations!J6 -> 1.808 | K7: =$C$7/(1+Calculations!$C$22)^Calculations!K6 -> 1.808 | L7: =$C$7/(1+Calculations!$C$22)^Calculations!L6 -> 1.808 | M7: =$C$7/(1+Calculations!$C$22)^Calculations!M6 -> 1.808 | N7: =$C$7/(1+Calculations!$C$22)^Calculations!N6 -> 1.808 | O7: =$C$7/(1+Calculations!$C$22)^Calculations!O6 -> 1.808
B8: Dog vaccinations to reach goal | C8: ='Epi-demographic'!$C$16*Calculations!$C$24 -> 3618858.638 | D8: ='Epi-demographic'!$C$16*Calculations!$C$24 -> 3618858.638 | E8: ='Epi-demographic'!$C$16*Calculations!$C$24 -> 3618858.638 | F8: ='Epi-demographic'!$C$16*Calculations!$C$24 -> 3618858.638 | G8: ='Epi-demographic'!$C$16*Calculations!$C$24 -> 3618858.638 | H8: ='Epi-demographic'!$C$16*Calculations!$C$24 -> 3618858.638 | I8: ='Epi-demographic'!$C$16*Calculations!$C$24 -> 3618858.638 | J8: ='Epi-demographic'!$C$16*Calculations!$C$24 -> 3618858.638 | K8: ='Epi-demographic'!$C$16*Calculations!$C$24 -> 3618858.638 | L8: ='Epi-demographic'!$C$16*Calculations!$C$24 -> 3618858.638 | M8: ='Epi-demographic'!$C$16*Calculations!$C$24 -> 3618858.638 | N8: ='Epi-demographic'!$C$16*Calculations!$C$24 -> 3618858.638 | O8: ='Epi-demographic'!$C$16*Calculations!$C$24 -> 3618858.638
B9: Dog vaccinations required | C9: =IF($C$25<$C$33,$C$25*$C$26,IF($C$25>=$C$24,$C$24*$C$26,IF($C$25>=$C$35,$C$26*$C$25,IF($C$25>=$C$34,$C$26*$C$25,IF($C$25>=$C$33,$C$25*$C$26,"check"))))) -> 258489.9027 | D9: =IF($C$25<$C$33,$C$25*$C$26,IF($C$25>=$C$24,$C$24*$C$26,IF($C$25>=$C$35,$C$26*$C$24,IF($C$25>=$C$34,$C$26*$E$35,IF($C$25>=$C$33,$C$26*$E$34,"check"))))) -> 258489.9027 | E9: =IF($C$25<$C$33,$C$25*$C$26,IF($C$25>=$C$24,$C$24*$C$26,IF($C$25>=$C$35,$C$26*$C$24,IF($C$25>=$C$34,$C$26*$C$24,IF($C$25>=$C$33,$C$26*$E$35,"check"))))) -> 258489.9027 | F9: =IF($C$24=0, 0,IF($C$25<$C$33, $E$33*$C$26,IF($C$25>=$C$24,$C$24*$C$26,IF($C$25>=$C$35,$C$26*$C$24,IF($C$25>=$C$34,$C$26*$C$24,IF($C$25>=$C$33,$C$26*$C$24,"check")))))) -> 1357071.989 | G9: =IF($C$24=0, 0, IF($C$25<$C$33,$E$34*$C$26,IF($C$25>=$C$24,$C$24*$C$26,IF($C$25>=$C$35,$C$26*$C$24,IF($C$25>=$C$34,$C$26*$C$24,IF($C$25>=$C$33,$C$26*$C$24,"check")))))) -> 2261786.649 | H9: =IF($C$24=0, 0,IF($C$25<$C$33, $E$35*$C$26,IF($C$25>=$C$24,$C$24*$C$26,IF($C$25>=$C$35,$C$26*$C$24,IF($C$25>=$C$34,$C$26*$C$24,IF($C$25>=$C$33,$C$26*$C$24,"check")))))) -> 3166501.309 | I9: =IF($C$25<$C$33,$C$24*$C$26,IF($C$25>=$C$24,$C$24*$C$26,IF($C$25>=$C$35,$C$26*$C$24,IF($C$25>=$C$34,$C$26*$C$24,IF($C$25>=$C$33,$C$26*$C$24,"check"))))) -> 3618858.638 | J9: =IF($C$25<$C$33,$C$24*$C$26,IF($C$25>=$C$24,0,IF($C$25>=$C$35,$C$26*$C$24,IF($C$25>=$C$34,$C$26*$C$24,IF($C$25>=$C$33,$C$26*$C$24,"check"))))) -> 3618858.638 | K9: =IF($C$25<$C$33,$C$24*$C$26,IF($C$25>=$C$24,0,IF($C$25>=$C$35,0,IF($C$25>=$C$34,$C$26*$C$24,IF($C$25>=$C$33,$C$26*$C$24,"check"))))) -> 3618858.638 | L9: =IF($C$25<$C$33,$C$24*$C$26,IF($C$25>=$C$24,0,IF($C$25>=$C$35,0,IF($C$25>=$C$34,0,IF($C$25>=$C$33,$C$26*$C$24,"check"))))) -> 3618858.638 | M9: =IF($C$25<$C$33,$C$24*$C$26,IF($C$25>=$C$24,0,IF($C$25>=$C$35,0,IF($C$25>=$C$34,0,IF($C$25>=$C$33,0,"check"))))) -> 3618858.638 | N9: =IF($C$25<$C$33,$C$24*$C$26,IF($C$25>=$C$24,0,IF($C$25>=$C$35,0,IF($C$25>=$C$34,0,IF($C$25>=$C$33,0,"check"))))) -> 3618858.638 | O9: =IF($C$25<$C$33,$C$24*$C$26,IF($C$25>=$C$24,0,IF($C$25>=$C$35,0,IF($C$25>=$C$34,0,IF($C$25>=$C$33,0,"check"))))) -> 3618858.638
B10: =CONCATENATE("Vaccinators required if"," ", 'Epi-demographic'!C27, " ", "dogs vaccinated per vaccinator daily") -> Vaccinators required if 100 dogs vaccinated per vaccinator daily | C10: =C9/('Epi-demographic'!$C$28*'Epi-demographic'!$C$27) -> 123.0904299 | D10: =D9/('Epi-demographic'!$C$28*'Epi-demographic'!$C$27) -> 123.0904299 | E10: =E9/('Epi-demographic'!$C$28*'Epi-demographic'!$C$27) -> 123.0904299 | F10: =F9/('Epi-demographic'!$C$28*'Epi-demographic'!$C$27) -> 646.2247568 | G10: =G9/('Epi-demographic'!$C$28*'Epi-demographic'!$C$27) -> 1077.041261 | H10: =H9/('Epi-demographic'!$C$28*'Epi-demographic'!$C$27) -> 1507.857766 | I10: =I9/('Epi-demographic'!$C$28*'Epi-demographic'!$C$27) -> 1723.266018 | J10: =J9/('Epi-demographic'!$C$28*'Epi-demographic'!$C$27) -> 1723.266018 | K10: =K9/('Epi-demographic'!$C$28*'Epi-demographic'!$C$27) -> 1723.266018 | L10: =L9/('Epi-demographic'!$C$28*'Epi-demographic'!$C$27) -> 1723.266018 | M10: =M9/('Epi-demographic'!$C$28*'Epi-demographic'!$C$27) -> 1723.266018 | N10: =N9/('Epi-demographic'!$C$28*'Epi-demographic'!$C$27) -> 1723.266018 | O10: =O9/('Epi-demographic'!$C$28*'Epi-demographic'!$C$27) -> 1723.266018
B11: Max capac. dog vaccinations | C11: ='Epi-demographic'!$C$26*'Epi-demographic'!$C$27*'Epi-demographic'!$C$28 -> 9030000 | D11: ='Epi-demographic'!$C$26*'Epi-demographic'!$C$27*'Epi-demographic'!$C$28 -> 9030000 | E11: ='Epi-demographic'!$C$26*'Epi-demographic'!$C$27*'Epi-demographic'!$C$28 -> 9030000 | F11: ='Epi-demographic'!$C$26*'Epi-demographic'!$C$27*'Epi-demographic'!$C$28 -> 9030000 | G11: ='Epi-demographic'!$C$26*'Epi-demographic'!$C$27*'Epi-demographic'!$C$28 -> 9030000 | H11: ='Epi-demographic'!$C$26*'Epi-demographic'!$C$27*'Epi-demographic'!$C$28 -> 9030000 | I11: ='Epi-demographic'!$C$26*'Epi-demographic'!$C$27*'Epi-demographic'!$C$28 -> 9030000 | J11: ='Epi-demographic'!$C$26*'Epi-demographic'!$C$27*'Epi-demographic'!$C$28 -> 9030000 | K11: ='Epi-demographic'!$C$26*'Epi-demographic'!$C$27*'Epi-demographic'!$C$28 -> 9030000 | L11: ='Epi-demographic'!$C$26*'Epi-demographic'!$C$27*'Epi-demographic'!$C$28 -> 9030000 | M11: ='Epi-demographic'!$C$26*'Epi-demographic'!$C$27*'Epi-demographic'!$C$28 -> 9030000 | N11: ='Epi-demographic'!$C$26*'Epi-demographic'!$C$27*'Epi-demographic'!$C$28 -> 9030000 | O11: ='Epi-demographic'!$C$26*'Epi-demographic'!$C$27*'Epi-demographic'!$C$28 -> 9030000
B12: Net dog vaccination capacity | C12: =C11-C9 -> 8771510.097 | D12: =D11-D9 -> 8771510.097 | E12: 8771510.097 | F12: 7672928.011 | G12: 6768213.351 | H12: 5863498.691 | I12: 5411141.362 | J12: =IF(J9=0,0,J11-J9) -> 5411141.362 | K12: =IF(K9=0,0,K11-K9) -> 5411141.362 | L12: 5411141.362 | M12: 5411141.362 | N12: 5411141.362 | O12: 5411141.362
B13: Current spending on dog vaccination† | C13: =$C$25*C$7*'Epi-demographic'!$C$16 -> 467349.7441 | D13: =$C$25*D$7*'Epi-demographic'!$C$16 -> 467349.7441 | E13: =$C$25*E$7*'Epi-demographic'!$C$16 -> 467349.7441 | F13: =$C$25*F$7*'Epi-demographic'!$C$16 -> 467349.7441 | G13: =$C$25*G$7*'Epi-demographic'!$C$16 -> 467349.7441 | H13: =$C$25*H$7*'Epi-demographic'!$C$16 -> 467349.7441 | I13: =$C$25*I$7*'Epi-demographic'!$C$16 -> 467349.7441 | J13: =$C$25*J$7*'Epi-demographic'!$C$16 -> 467349.7441 | K13: =$C$25*K$7*'Epi-demographic'!$C$16 -> 467349.7441 | L13: =$C$25*L$7*'Epi-demographic'!$C$16 -> 467349.7441 | M13: =$C$25*M$7*'Epi-demographic'!$C$16 -> 467349.7441 | N13: =$C$25*N$7*'Epi-demographic'!$C$16 -> 467349.7441 | O13: =$C$25*O$7*'Epi-demographic'!$C$16 -> 467349.7441
B14: Cost to vaccinate dogs based on phases | C14: =C9*C7 -> 467349.7441 | D14: 467349.7441 | E14: 467349.7441 | F14: 2453586.157 | G14: 4089310.261 | H14: 5725034.366 | I14: 6542896.418 | J14: 6542896.418 | K14: 6542896.418 | L14: 6542896.418 | M14: 6542896.418 | N14: 6542896.418 | O14: 6542896.418 | P14: =SUM(C14:O14) -> 59470254.94
B15: Additional cost from scaling* | C15: =IF($C$25<$C$33,$C$23*($C$24-$C$25)*$C$26*$C$7,IF($C$25>=$C$24,0,IF($C$25<$C$24,IF($C$25>=$C$35,$C$23*($C$24-$C$25)*$C$26*$C$7,IF($C$25>=$C$34,$C$23*($C$24-$C$25)*$C$26*$C$7, IF($C$25>=$C$33,$C$23*($C$24-$C$25)*$C$26*$C$7,"check")))))) -> 607554.6674 | D15: =IF($C$25<$C$33,$C$23*($C$24-$C$25)*$C$26*D$7,IF($C$25>=$C$24,0,IF($C$25<$C$24,IF($C$25>=$C$35,0,IF($C$25>=$C$34,$C$23*($C$24-$E$35)*$C$26*D$7, IF($C$25>=$C$33,$C$23*($C$24-$E$34)*$C$26*D$7,"check")))))) -> 607554.6674 | E15: =IF($C$25<$C$33,$C$23*($C$24-$C$25)*$C$26*E$7,IF($C$25>=$C$24,0,IF($C$25<$C$24,IF($C$25>=$C$35,0,IF($C$25>=$C$34,0, IF($C$25>=$C$33,$C$23*($C$24-$E$35)*$C$26*E$7,"check")))))) -> 607554.6674 | F15: =IF($C$24=0,0,IF($C$25<$C$33,$C$23*($C$24-$E$33)*$C$26*F$7,IF($C$25>=$C$24,0,IF($C$25<$C$24,IF($C$25>=$C$35,0,IF($C$25>=$C$34,0, IF($C$25>=$C$33,0,"check"))))))) -> 408931.0261 | G15: =IF($C$24=0,0,IF($C$25<$C$33,$C$23*($C$24-$E$34)*$C$26*G$7,IF($C$25>=$C$24,0,IF($C$25<$C$24,IF($C$25>=$C$35,0,IF($C$25>=$C$34,0, IF($C$25>=$C$33,0,"check"))))))) -> 245358.6157 | H15: =IF(C24=0,0,IF($C$25<$C$33,$C$23*($C$24-$E$35)*$C$26*H$7,IF($C$25>=$C$24,0,IF($C$25<$C$24,IF($C$25>=$C$35,0,IF($C$25>=$C$34,0, IF($C$25>=$C$33,0,"check"))))))) -> 81786.20523 | I15: =IF($C$25<$C$33,0,IF($C$25>=$C$24,0,IF($C$25<$C$24,IF($C$25>=$C$35,0,IF($C$25>=$C$34,0, IF($C$25>=$C$33,0,"check")))))) -> 0 | J15: 0 | K15: 0 | L15: 0 | M15: 0 | N15: 0 | O15: 0 | P15: =SUM(C15:O15) -> 2558739.849
B16: Total cost to vaccinate dogs | C16: =SUM(C14:C15) -> 1074904.412 | D16: 1074904.412 | E16: 1074904.412 | F16: 2862517.183 | G16: 4334668.877 | H16: 5806820.571 | I16: 6542896.418 | J16: 6542896.418 | K16: 6542896.418 | L16: 6542896.418 | M16: 6542896.418 | N16: 6542896.418 | O16: 6542896.418 | P16: =SUM(C16:O16) -> 62028994.79
B17: (Difference total costs with upper estimate) | C17: =C60-C16 -> 185888.7054 | D17: 185888.7054 | E17: 185888.7054 | F17: 495029.7046 | G17: 749616.4098 | H17: 1004203.115 | I17: 1131496.468 | J17: 1131496.468 | K17: 1131496.468 | L17: 1131496.468 | M17: 1131496.468 | N17: 1131496.468 | O17: 1131496.468
B18: (Difference total costs with lower estimate) | C18: =C16-C47 -> 197779.2409 | D18: 197779.2409 | E18: 197779.2409 | F18: 526694.7176 | G18: 797566.2867 | H18: 1068437.856 | I18: 1203873.64 | J18: 1203873.64 | K18: 1203873.64 | L18: 1203873.64 | M18: 1203873.64 | N18: 1203873.64 | O18: 1203873.64
B19: Additional spending required (government) | C19: =IF(C9=0,0,C16-C13) -> 607554.6674 | D19: =IF(D9=0,0,D16-D13) -> 607554.6674 | E19: 607554.6674 | F19: 2395167.439 | G19: 3867319.133 | H19: 5339470.827 | I19: 6075546.674 | J19: 6075546.674 | K19: 6075546.674 | L19: 6075546.674 | M19: 6075546.674 | N19: 6075546.674 | O19: 6075546.674 | P19: =SUM(C19:O19) -> 55953448.12
B21: Constant variables | O21: Check estimates
B22: Annual discount | C22: ='Epi-demographic'!C7 -> 0 | O22: NPV Phase I | P22: ='Epi-demographic'!H14 -> 3224713.235
B23: Scaling up the program* | C23: 0.1 | O23: NPV Phase II | P23: ='Epi-demographic'!H15 -> 13004006.63
B24: Goal to control rabies | C24: ='Epi-demographic'!C21 -> 0.7 | O24: NPV Phase III | P24: ='Epi-demographic'!H16 -> 45800274.93
B25: Current dog vaccination | C25: ='Epi-demographic'!C20 -> 0.05 | O25: Total | P25: ='Epi-demographic'!H17 -> 62028994.79
B26: Total dogs | C26: ='Epi-demographic'!C16 -> 5169798.055 | O26: Difference | P26: =P25-P16 -> 0 | Q26: =IF(P26=0, "ok", "check") -> ok
B27: Notes:
B28: All estimates assume a constant human and dog population
B29: †Estimate is based on average cost to vaccinate a dog and the proportion of the dog population currently being vaccinated; proportion of dogs vaccinated are assumed to be maintained in time
B30: *Annual value of the costs of scaling up the program; x% of the what is needed to reach goal (countries with less vaccination would spend more to upgrade)
B32: Phase II Rabies campaigns | C32: Lower bound | D32: Upper bound | E32: Median
B33: Year 4 | C33: =Flowchart!F16 -> 0.175 | D33: =Flowchart!G16 -> 0.35 | E33: =Flowchart!H16 -> 0.2625
B34: Year 5 | C34: =Flowchart!F17 -> 0.35 | D34: =Flowchart!G17 -> 0.525 | E34: =Flowchart!H17 -> 0.4375
B35: Year 6 | C35: =Flowchart!F18 -> 0.525 | D35: =Flowchart!G18 -> 0.7 | E35: =Flowchart!H18 -> 0.6125
B37: Lower bound estimates | C37: Years
B38: Discounted values | C38: 0 | D38: 1 | E38: 2 | F38: 3 | G38: 4 | H38: 5 | I38: 6 | J38: 7 | K38: 8 | L38: 9 | M38: 10 | N38: 11 | O38: 12 | P38: Total
B39: Dog vaccines - (lower bound) | C39: =Cost_dog_vax_aid!I5/(1+Calculations!$C$22)^Calculations!C38 -> 1.475333333 | D39: =$C$39/(1+Calculations!$C$22)^Calculations!D38 -> 1.475333333 | E39: =$C$39/(1+Calculations!$C$22)^Calculations!E38 -> 1.475333333 | F39: =$C$39/(1+Calculations!$C$22)^Calculations!F38 -> 1.475333333 | G39: =$C$39/(1+Calculations!$C$22)^Calculations!G38 -> 1.475333333 | H39: =$C$39/(1+Calculations!$C$22)^Calculations!H38 -> 1.475333333 | I39: =$C$39/(1+Calculations!$C$22)^Calculations!I38 -> 1.475333333 | J39: =$C$39/(1+Calculations!$C$22)^Calculations!J38 -> 1.475333333 | K39: =$C$39/(1+Calculations!$C$22)^Calculations!K38 -> 1.475333333 | L39: =$C$39/(1+Calculations!$C$22)^Calculations!L38 -> 1.475333333 | M39: =$C$39/(1+Calculations!$C$22)^Calculations!M38 -> 1.475333333 | N39: =$C$39/(1+Calculations!$C$22)^Calculations!N38 -> 1.475333333 | O39: =$C$39/(1+Calculations!$C$22)^Calculations!O38 -> 1.475333333
B40: Dog vaccinations to reach goal | C40: ='Epi-demographic'!$C$16*Calculations!$C$24 -> 3618858.638 | D40: ='Epi-demographic'!$C$16*Calculations!$C$24 -> 3618858.638 | E40: ='Epi-demographic'!$C$16*Calculations!$C$24 -> 3618858.638 | F40: ='Epi-demographic'!$C$16*Calculations!$C$24 -> 3618858.638 | G40: ='Epi-demographic'!$C$16*Calculations!$C$24 -> 3618858.638 | H40: ='Epi-demographic'!$C$16*Calculations!$C$24 -> 3618858.638 | I40: ='Epi-demographic'!$C$16*Calculations!$C$24 -> 3618858.638 | J40: ='Epi-demographic'!$C$16*Calculations!$C$24 -> 3618858.638 | K40: ='Epi-demographic'!$C$16*Calculations!$C$24 -> 3618858.638 | L40: ='Epi-demographic'!$C$16*Calculations!$C$24 -> 3618858.638 | M40: ='Epi-demographic'!$C$16*Calculations!$C$24 -> 3618858.638 | N40: ='Epi-demographic'!$C$16*Calculations!$C$24 -> 3618858.638 | O40: ='Epi-demographic'!$C$16*Calculations!$C$24 -> 3618858.638
B41: Dog vaccinations required | C41: =IF($C$25<$C$33,$C$25*$C$26,IF($C$25>=$C$24,$C$24*$C$26,IF($C$25>=$C$35,$C$26*$C$25,IF($C$25>=$C$34,$C$26*$C$25,IF($C$25>=$C$33,$C$25*$C$26,"check"))))) -> 258489.9027 | D41: =IF($C$25<$C$33,$C$25*$C$26,IF($C$25>=$C$24,$C$24*$C$26,IF($C$25>=$C$35,$C$26*$C$24,IF($C$25>=$C$34,$C$26*$E$35,IF($C$25>=$C$33,$C$26*$E$34,"check"))))) -> 258489.9027 | E41: =IF($C$25<$C$33,$C$25*$C$26,IF($C$25>=$C$24,$C$24*$C$26,IF($C$25>=$C$35,$C$26*$C$24,IF($C$25>=$C$34,$C$26*$C$24,IF($C$25>=$C$33,$C$26*$E$35,"check"))))) -> 258489.9027 | F41: =IF($C$24=0, 0,IF($C$25<$C$33, $E$33*$C$26,IF($C$25>=$C$24,$C$24*$C$26,IF($C$25>=$C$35,$C$26*$C$24,IF($C$25>=$C$34,$C$26*$C$24,IF($C$25>=$C$33,$C$26*$C$24,"check")))))) -> 1357071.989 | G41: =IF($C$24=0, 0, IF($C$25<$C$33,$E$34*$C$26,IF($C$25>=$C$24,$C$24*$C$26,IF($C$25>=$C$35,$C$26*$C$24,IF($C$25>=$C$34,$C$26*$C$24,IF($C$25>=$C$33,$C$26*$C$24,"check")))))) -> 2261786.649 | H41: =IF($C$24=0, 0,IF($C$25<$C$33, $E$35*$C$26,IF($C$25>=$C$24,$C$24*$C$26,IF($C$25>=$C$35,$C$26*$C$24,IF($C$25>=$C$34,$C$26*$C$24,IF($C$25>=$C$33,$C$26*$C$24,"check")))))) -> 3166501.309 | I41: =IF($C$25<$C$33,$C$24*$C$26,IF($C$25>=$C$24,$C$24*$C$26,IF($C$25>=$C$35,$C$26*$C$24,IF($C$25>=$C$34,$C$26*$C$24,IF($C$25>=$C$33,$C$26*$C$24,"check"))))) -> 3618858.638 | J41: =IF($C$25<$C$33,$C$24*$C$26,IF($C$25>=$C$24,0,IF($C$25>=$C$35,$C$26*$C$24,IF($C$25>=$C$34,$C$26*$C$24,IF($C$25>=$C$33,$C$26*$C$24,"check"))))) -> 3618858.638 | K41: =IF($C$25<$C$33,$C$24*$C$26,IF($C$25>=$C$24,0,IF($C$25>=$C$35,0,IF($C$25>=$C$34,$C$26*$C$24,IF($C$25>=$C$33,$C$26*$C$24,"check"))))) -> 3618858.638 | L41: =IF($C$25<$C$33,$C$24*$C$26,IF($C$25>=$C$24,0,IF($C$25>=$C$35,0,IF($C$25>=$C$34,0,IF($C$25>=$C$33,$C$26*$C$24,"check"))))) -> 3618858.638 | M41: =IF($C$25<$C$33,$C$24*$C$26,IF($C$25>=$C$24,0,IF($C$25>=$C$35,0,IF($C$25>=$C$34,0,IF($C$25>=$C$33,0,"check"))))) -> 3618858.638 | N41: =IF($C$25<$C$33,$C$24*$C$26,IF($C$25>=$C$24,0,IF($C$25>=$C$35,0,IF($C$25>=$C$34,0,IF($C$25>=$C$33,0,"check"))))) -> 3618858.638 | O41: =IF($C$25<$C$33,$C$24*$C$26,IF($C$25>=$C$24,0,IF($C$25>=$C$35,0,IF($C$25>=$C$34,0,IF($C$25>=$C$33,0,"check"))))) -> 3618858.638
B42: Max capac. dog vaccinations | C42: ='Epi-demographic'!$C$26*'Epi-demographic'!$C$27*'Epi-demographic'!$C$28 -> 9030000 | D42: ='Epi-demographic'!$C$26*'Epi-demographic'!$C$27*'Epi-demographic'!$C$28 -> 9030000 | E42: ='Epi-demographic'!$C$26*'Epi-demographic'!$C$27*'Epi-demographic'!$C$28 -> 9030000 | F42: ='Epi-demographic'!$C$26*'Epi-demographic'!$C$27*'Epi-demographic'!$C$28 -> 9030000 | G42: ='Epi-demographic'!$C$26*'Epi-demographic'!$C$27*'Epi-demographic'!$C$28 -> 9030000 | H42: ='Epi-demographic'!$C$26*'Epi-demographic'!$C$27*'Epi-demographic'!$C$28 -> 9030000 | I42: ='Epi-demographic'!$C$26*'Epi-demographic'!$C$27*'Epi-demographic'!$C$28 -> 9030000 | J42: ='Epi-demographic'!$C$26*'Epi-demographic'!$C$27*'Epi-demographic'!$C$28 -> 9030000 | K42: ='Epi-demographic'!$C$26*'Epi-demographic'!$C$27*'Epi-demographic'!$C$28 -> 9030000 | L42: ='Epi-demographic'!$C$26*'Epi-demographic'!$C$27*'Epi-demographic'!$C$28 -> 9030000 | M42: ='Epi-demographic'!$C$26*'Epi-demographic'!$C$27*'Epi-demographic'!$C$28 -> 9030000 | N42: ='Epi-demographic'!$C$26*'Epi-demographic'!$C$27*'Epi-demographic'!$C$28 -> 9030000 | O42: ='Epi-demographic'!$C$26*'Epi-demographic'!$C$27*'Epi-demographic'!$C$28 -> 9030000
B43: Net dog vaccination capacity | C43: =C42-C41 -> 8771510.097 | D43: =D42-D41 -> 8771510.097 | E43: 8771510.097 | F43: 7672928.011 | G43: 6768213.351 | H43: 5863498.691 | I43: 5411141.362 | J43: =IF(J41=0,0,J42-J41) -> 5411141.362 | K43: =IF(K41=0,0,K42-K41) -> 5411141.362 | L43: 5411141.362 | M43: 5411141.362 | N43: 5411141.362 | O43: 5411141.362
B44: Current spending on dog vaccination† | C44: =$C$25*C$39*'Epi-demographic'!$C$16 -> 381358.7698 | D44: =$C$25*D$39*'Epi-demographic'!$C$16 -> 381358.7698 | E44: =$C$25*E$39*'Epi-demographic'!$C$16 -> 381358.7698 | F44: =$C$25*F$39*'Epi-demographic'!$C$16 -> 381358.7698 | G44: =$C$25*G$39*'Epi-demographic'!$C$16 -> 381358.7698 | H44: =$C$25*H$39*'Epi-demographic'!$C$16 -> 381358.7698 | I44: =$C$25*I$39*'Epi-demographic'!$C$16 -> 381358.7698 | J44: =$C$25*J$39*'Epi-demographic'!$C$16 -> 381358.7698 | K44: =$C$25*K$39*'Epi-demographic'!$C$16 -> 381358.7698 | L44: =$C$25*L$39*'Epi-demographic'!$C$16 -> 381358.7698 | M44: =$C$25*M$39*'Epi-demographic'!$C$16 -> 381358.7698 | N44: =$C$25*N$39*'Epi-demographic'!$C$16 -> 381358.7698 | O44: =$C$25*O$39*'Epi-demographic'!$C$16 -> 381358.7698
B45: Cost to vaccinate dogs | C45: =C41*C39 -> 381358.7698 | D45: =D41*D39 -> 381358.7698 | E45: 381358.7698 | F45: 2002133.542 | G45: 3336889.236 | H45: 4671644.93 | I45: 5339022.778 | J45: 5339022.778 | K45: 5339022.778 | L45: 5339022.778 | M45: 5339022.778 | N45: 5339022.778 | O45: 5339022.778 | P45: =SUM(C45:O45) -> 48527903.46
B46: Additional cost from scaling | C46: =IF($C$25<$C$33,$C$23*($C$24-$C$25)*$C$26*$C$39,IF($C$25>=$C$24,0,IF($C$25<$C$24,IF($C$25>=$C$35,$C$23*($C$24-$C$25)*$C$26*$C$39,IF($C$25>=$C$34,$C$23*($C$24-$C$25)*$C$26*$C$39, IF($C$25>=$C$33,$C$23*($C$24-$C$25)*$C$26*$C$39,"check")))))) -> 495766.4008 | D46: =IF($C$25<$C$33,$C$23*($C$24-$C$25)*$C$26*D$39,IF($C$25>=$C$24,0,IF($C$25<$C$24,IF($C$25>=$C$35,0,IF($C$25>=$C$34,$C$23*($C$24-$E$35)*$C$26*D$39, IF($C$25>=$C$33,$C$23*($C$24-$E$34)*$C$26*D$39,"check")))))) -> 495766.4008 | E46: =IF($C$25<$C$33,$C$23*($C$24-$C$25)*$C$26*E$39,IF($C$25>=$C$24,0,IF($C$25<$C$24,IF($C$25>=$C$35,0,IF($C$25>=$C$34,0, IF($C$25>=$C$33,$C$23*($C$24-$E$35)*$C$26*E$39,"check")))))) -> 495766.4008 | F46: =IF($C$24=0,0,IF($C$25<$C$33,$C$23*($C$24-$E$33)*$C$26*F$39,IF($C$25>=$C$24,0,IF($C$25<$C$24,IF($C$25>=$C$35,0,IF($C$25>=$C$34,0, IF($C$25>=$C$33,0,"check"))))))) -> 333688.9236 | G46: =IF($C$24=0,0,IF($C$25<$C$33,$C$23*($C$24-$E$34)*$C$26*G$39,IF($C$25>=$C$24,0,IF($C$25<$C$24,IF($C$25>=$C$35,0,IF($C$25>=$C$34,0, IF($C$25>=$C$33,0,"check"))))))) -> 200213.3542 | H46: =IF($C$24=0,0,IF($C$25<$C$33,$C$23*($C$24-$E$35)*$C$26*H$39,IF($C$25>=$C$24,0,IF($C$25<$C$24,IF($C$25>=$C$35,0,IF($C$25>=$C$34,0, IF($C$25>=$C$33,0,"check"))))))) -> 66737.78472 | I46: =IF($C$25<$C$33,0,IF($C$25>=$C$24,0,IF($C$25<$C$24,IF($C$25>=$C$35,0,IF($C$25>=$C$34,0, IF($C$25>=$C$33,0,"check")))))) -> 0 | J46: 0 | K46: 0 | L46: 0 | M46: 0 | N46: 0 | O46: 0 | P46: =SUM(C46:O46) -> 2087939.265
B47: Total cost to vaccinate dogs | C47: =SUM(C45:C46) -> 877125.1706 | D47: =SUM(D45:D46) -> 877125.1706 | E47: 877125.1706 | F47: 2335822.465 | G47: 3537102.59 | H47: 4738382.715 | I47: 5339022.778 | J47: 5339022.778 | K47: 5339022.778 | L47: 5339022.778 | M47: 5339022.778 | N47: 5339022.778 | O47: 5339022.778 | P47: 50615842.73
B48: Additional spending required (gov.-lower bound) | C48: =IF(C41=0,0,C47-C44) -> 495766.4008 | D48: =IF(D41=0,0,D47-D44) -> 495766.4008 | E48: 495766.4008 | F48: 1954463.695 | G48: 3155743.82 | H48: 4357023.945 | I48: 4957664.008 | J48: 4957664.008 | K48: 4957664.008 | L48: 4957664.008 | M48: 4957664.008 | N48: 4957664.008 | O48: 4957664.008 | P48: =SUM(C48:O48) -> 45658178.72
B50: Upper bound estimates | C50: Years
B51: Discounted values | C51: 0 | D51: 1 | E51: 2 | F51: 3 | G51: 4 | H51: 5 | I51: 6 | J51: 7 | K51: 8 | L51: 9 | M51: 10 | N51: 11 | O51: 12 | P51: Total
B52: Dog vaccines - (lower bound) | C52: =Cost_dog_vax_aid!K5/(1+Calculations!$C$22)^Calculations!C51 -> 2.120666667 | D52: =$C$52/(1+Calculations!$C$22)^Calculations!D51 -> 2.120666667 | E52: =$C$52/(1+Calculations!$C$22)^Calculations!E51 -> 2.120666667 | F52: =$C$52/(1+Calculations!$C$22)^Calculations!F51 -> 2.120666667 | G52: =$C$52/(1+Calculations!$C$22)^Calculations!G51 -> 2.120666667 | H52: =$C$52/(1+Calculations!$C$22)^Calculations!H51 -> 2.120666667 | I52: =$C$52/(1+Calculations!$C$22)^Calculations!I51 -> 2.120666667 | J52: =$C$52/(1+Calculations!$C$22)^Calculations!J51 -> 2.120666667 | K52: =$C$52/(1+Calculations!$C$22)^Calculations!K51 -> 2.120666667 | L52: =$C$52/(1+Calculations!$C$22)^Calculations!L51 -> 2.120666667 | M52: =$C$52/(1+Calculations!$C$22)^Calculations!M51 -> 2.120666667 | N52: =$C$52/(1+Calculations!$C$22)^Calculations!N51 -> 2.120666667 | O52: =$C$52/(1+Calculations!$C$22)^Calculations!O51 -> 2.120666667
B53: Dog vaccinations to reach goal | C53: ='Epi-demographic'!$C$16*Calculations!$C$24 -> 3618858.638 | D53: ='Epi-demographic'!$C$16*Calculations!$C$24 -> 3618858.638 | E53: ='Epi-demographic'!$C$16*Calculations!$C$24 -> 3618858.638 | F53: ='Epi-demographic'!$C$16*Calculations!$C$24 -> 3618858.638 | G53: ='Epi-demographic'!$C$16*Calculations!$C$24 -> 3618858.638 | H53: ='Epi-demographic'!$C$16*Calculations!$C$24 -> 3618858.638 | I53: ='Epi-demographic'!$C$16*Calculations!$C$24 -> 3618858.638 | J53: ='Epi-demographic'!$C$16*Calculations!$C$24 -> 3618858.638 | K53: ='Epi-demographic'!$C$16*Calculations!$C$24 -> 3618858.638 | L53: ='Epi-demographic'!$C$16*Calculations!$C$24 -> 3618858.638 | M53: ='Epi-demographic'!$C$16*Calculations!$C$24 -> 3618858.638 | N53: ='Epi-demographic'!$C$16*Calculations!$C$24 -> 3618858.638 | O53: ='Epi-demographic'!$C$16*Calculations!$C$24 -> 3618858.638
B54: Dog vaccinations required | C54: =IF($C$25<$C$33,$C$25*$C$26,IF($C$25>=$C$24,$C$24*$C$26,IF($C$25>=$C$35,$C$26*$C$25,IF($C$25>=$C$34,$C$26*$C$25,IF($C$25>=$C$33,$C$25*$C$26,"check"))))) -> 258489.9027 | D54: =IF($C$25<$C$33,$C$25*$C$26,IF($C$25>=$C$24,$C$24*$C$26,IF($C$25>=$C$35,$C$26*$C$24,IF($C$25>=$C$34,$C$26*$E$35,IF($C$25>=$C$33,$C$26*$E$34,"check"))))) -> 258489.9027 | E54: =IF($C$25<$C$33,$C$25*$C$26,IF($C$25>=$C$24,$C$24*$C$26,IF($C$25>=$C$35,$C$26*$C$24,IF($C$25>=$C$34,$C$26*$C$24,IF($C$25>=$C$33,$C$26*$E$35,"check"))))) -> 258489.9027 | F54: =IF($C$24=0, 0,IF($C$25<$C$33, $E$33*$C$26,IF($C$25>=$C$24,$C$24*$C$26,IF($C$25>=$C$35,$C$26*$C$24,IF($C$25>=$C$34,$C$26*$C$24,IF($C$25>=$C$33,$C$26*$C$24,"check")))))) -> 1357071.989 | G54: =IF($C$24=0, 0, IF($C$25<$C$33,$E$34*$C$26,IF($C$25>=$C$24,$C$24*$C$26,IF($C$25>=$C$35,$C$26*$C$24,IF($C$25>=$C$34,$C$26*$C$24,IF($C$25>=$C$33,$C$26*$C$24,"check")))))) -> 2261786.649 | H54: =IF($C$24=0, 0,IF($C$25<$C$33, $E$35*$C$26,IF($C$25>=$C$24,$C$24*$C$26,IF($C$25>=$C$35,$C$26*$C$24,IF($C$25>=$C$34,$C$26*$C$24,IF($C$25>=$C$33,$C$26*$C$24,"check")))))) -> 3166501.309 | I54: =IF($C$25<$C$33,$C$24*$C$26,IF($C$25>=$C$24,$C$24*$C$26,IF($C$25>=$C$35,$C$26*$C$24,IF($C$25>=$C$34,$C$26*$C$24,IF($C$25>=$C$33,$C$26*$C$24,"check"))))) -> 3618858.638 | J54: =IF($C$25<$C$33,$C$24*$C$26,IF($C$25>=$C$24,0,IF($C$25>=$C$35,$C$26*$C$24,IF($C$25>=$C$34,$C$26*$C$24,IF($C$25>=$C$33,$C$26*$C$24,"check"))))) -> 3618858.638 | K54: =IF($C$25<$C$33,$C$24*$C$26,IF($C$25>=$C$24,0,IF($C$25>=$C$35,0,IF($C$25>=$C$34,$C$26*$C$24,IF($C$25>=$C$33,$C$26*$C$24,"check"))))) -> 3618858.638 | L54: =IF($C$25<$C$33,$C$24*$C$26,IF($C$25>=$C$24,0,IF($C$25>=$C$35,0,IF($C$25>=$C$34,0,IF($C$25>=$C$33,$C$26*$C$24,"check"))))) -> 3618858.638 | M54: =IF($C$25<$C$33,$C$24*$C$26,IF($C$25>=$C$24,0,IF($C$25>=$C$35,0,IF($C$25>=$C$34,0,IF($C$25>=$C$33,0,"check"))))) -> 3618858.638 | N54: =IF($C$25<$C$33,$C$24*$C$26,IF($C$25>=$C$24,0,IF($C$25>=$C$35,0,IF($C$25>=$C$34,0,IF($C$25>=$C$33,0,"check"))))) -> 3618858.638 | O54: =IF($C$25<$C$33,$C$24*$C$26,IF($C$25>=$C$24,0,IF($C$25>=$C$35,0,IF($C$25>=$C$34,0,IF($C$25>=$C$33,0,"check"))))) -> 3618858.638
B55: Max capac. dog vaccinations | C55: ='Epi-demographic'!$C$26*'Epi-demographic'!$C$27*'Epi-demographic'!$C$28 -> 9030000 | D55: ='Epi-demographic'!$C$26*'Epi-demographic'!$C$27*'Epi-demographic'!$C$28 -> 9030000 | E55: ='Epi-demographic'!$C$26*'Epi-demographic'!$C$27*'Epi-demographic'!$C$28 -> 9030000 | F55: ='Epi-demographic'!$C$26*'Epi-demographic'!$C$27*'Epi-demographic'!$C$28 -> 9030000 | G55: ='Epi-demographic'!$C$26*'Epi-demographic'!$C$27*'Epi-demographic'!$C$28 -> 9030000 | H55: ='Epi-demographic'!$C$26*'Epi-demographic'!$C$27*'Epi-demographic'!$C$28 -> 9030000 | I55: ='Epi-demographic'!$C$26*'Epi-demographic'!$C$27*'Epi-demographic'!$C$28 -> 9030000 | J55: ='Epi-demographic'!$C$26*'Epi-demographic'!$C$27*'Epi-demographic'!$C$28 -> 9030000 | K55: ='Epi-demographic'!$C$26*'Epi-demographic'!$C$27*'Epi-demographic'!$C$28 -> 9030000 | L55: ='Epi-demographic'!$C$26*'Epi-demographic'!$C$27*'Epi-demographic'!$C$28 -> 9030000 | M55: ='Epi-demographic'!$C$26*'Epi-demographic'!$C$27*'Epi-demographic'!$C$28 -> 9030000 | N55: ='Epi-demographic'!$C$26*'Epi-demographic'!$C$27*'Epi-demographic'!$C$28 -> 9030000 | O55: ='Epi-demographic'!$C$26*'Epi-demographic'!$C$27*'Epi-demographic'!$C$28 -> 9030000
B56: Net dog vaccination capacity | C56: =C55-C54 -> 8771510.097 | D56: =D55-D54 -> 8771510.097 | E56: 8771510.097 | F56: 7672928.011 | G56: 6768213.351 | H56: 5863498.691 | I56: 5411141.362 | J56: =IF(J54=0,0,J55-J54) -> 5411141.362 | K56: =IF(K54=0,0,K55-K54) -> 5411141.362 | L56: 5411141.362 | M56: 5411141.362 | N56: 5411141.362 | O56: 5411141.362
B57: Current spending on dog vaccination† | C57: =$C$25*C$52*'Epi-demographic'!$C$16 -> 548170.9204 | D57: =$C$25*D$52*'Epi-demographic'!$C$16 -> 548170.9204 | E57: =$C$25*E$52*'Epi-demographic'!$C$16 -> 548170.9204 | F57: =$C$25*F$52*'Epi-demographic'!$C$16 -> 548170.9204 | G57: =$C$25*G$52*'Epi-demographic'!$C$16 -> 548170.9204 | H57: =$C$25*H$52*'Epi-demographic'!$C$16 -> 548170.9204 | I57: =$C$25*I$52*'Epi-demographic'!$C$16 -> 548170.9204 | J57: =$C$25*J$52*'Epi-demographic'!$C$16 -> 548170.9204 | K57: =$C$25*K$52*'Epi-demographic'!$C$16 -> 548170.9204 | L57: =$C$25*L$52*'Epi-demographic'!$C$16 -> 548170.9204 | M57: =$C$25*M$52*'Epi-demographic'!$C$16 -> 548170.9204 | N57: =$C$25*N$52*'Epi-demographic'!$C$16 -> 548170.9204 | O57: =$C$25*O$52*'Epi-demographic'!$C$16 -> 548170.9204
B58: Cost to vaccinate dogs | C58: =C54*C52 -> 548170.9204 | D58: =D54*D52 -> 548170.9204 | E58: 548170.9204 | F58: 2877897.332 | G58: 4796495.554 | H58: 6715093.775 | I58: 7674392.886 | J58: 7674392.886 | K58: 7674392.886 | L58: 7674392.886 | M58: 7674392.886 | N58: 7674392.886 | O58: 7674392.886 | P58: =SUM(C58:O58) -> 69754749.62
B59: Additional cost from scaling | C59: =IF($C$25<$C$33,$C$23*($C$24-$C$25)*$C$26*$C$52,IF($C$25>=$C$24,0,IF($C$25<$C$24,IF($C$25>=$C$35,$C$23*($C$24-$C$25)*$C$26*$C$52,IF($C$25>=$C$34,$C$23*($C$24-$C$25)*$C$26*$C$52, IF($C$25>=$C$33,$C$23*($C$24-$C$25)*$C$26*$C$52,"check")))))) -> 712622.1965 | D59: =IF($C$25<$C$33,$C$23*($C$24-$C$25)*$C$26*D$52,IF($C$25>=$C$24,0,IF($C$25<$C$24,IF($C$25>=$C$35,0,IF($C$25>=$C$34,$C$23*($C$24-$E$35)*$C$26*D$52, IF($C$25>=$C$33,$C$23*($C$24-$E$34)*$C$26*D$52,"check")))))) -> 712622.1965 | E59: =IF($C$25<$C$33,$C$23*($C$24-$C$25)*$C$26*E$52,IF($C$25>=$C$24,0,IF($C$25<$C$24,IF($C$25>=$C$35,0,IF($C$25>=$C$34,0, IF($C$25>=$C$33,$C$23*($C$24-$E$35)*$C$26*E$52,"check")))))) -> 712622.1965 | F59: =IF($C$24=0,0,IF($C$25<$C$33,$C$23*($C$24-$E$33)*$C$26*F$52,IF($C$25>=$C$24,0,IF($C$25<$C$24,IF($C$25>=$C$35,0,IF($C$25>=$C$34,0, IF($C$25>=$C$33,0,"check"))))))) -> 479649.5554 | G59: =IF($C$24=0,0,IF($C$25<$C$33,$C$23*($C$24-$E$34)*$C$26*G$52,IF($C$25>=$C$24,0,IF($C$25<$C$24,IF($C$25>=$C$35,0,IF($C$25>=$C$34,0, IF($C$25>=$C$33,0,"check"))))))) -> 287789.7332 | H59: =IF($C$24=0,0,IF($C$25<$C$33,$C$23*($C$24-$E$35)*$C$26*H$52,IF($C$25>=$C$24,0,IF($C$25<$C$24,IF($C$25>=$C$35,0,IF($C$25>=$C$34,0, IF($C$25>=$C$33,0,"check"))))))) -> 95929.91107 | I59: =IF($C$25<$C$33,0,IF($C$25>=$C$24,0,IF($C$25<$C$24,IF($C$25>=$C$35,0,IF($C$25>=$C$34,0, IF($C$25>=$C$33,0,"check")))))) -> 0 | J59: 0 | K59: 0 | L59: 0 | M59: 0 | N59: 0 | O59: 0 | P59: =SUM(C59:O59) -> 3001235.789
B60: Total cost to vaccinate dogs | C60: =SUM(C58:C59) -> 1260793.117 | D60: =SUM(D58:D59) -> 1260793.117 | E60: 1260793.117 | F60: 3357546.887 | G60: 5084285.287 | H60: 6811023.686 | I60: 7674392.886 | J60: 7674392.886 | K60: 7674392.886 | L60: 7674392.886 | M60: 7674392.886 | N60: 7674392.886 | O60: 7674392.886 | P60: 72755985.41
B61: Additional spending required (gov.-upper bound) | C61: =IF(C54=0,0,C60-C57) -> 712622.1965 | D61: =IF(D54=0,0,D60-D57) -> 712622.1965 | E61: 712622.1965 | F61: 2809375.967 | G61: 4536114.366 | H61: 6262852.766 | I61: 7126221.965 | J61: 7126221.965 | K61: 7126221.965 | L61: 7126221.965 | M61: 7126221.965 | N61: 7126221.965 | O61: 7126221.965 | P61: =SUM(C61:O61) -> 65629763.45
